Workbook

Sheet Вероятность
A1: Лотерея "6 из 45"
C3: Количество всех возможных комбинаций | D3: =COMBIN(45,6) -> 8145060
A5: Угадано | B5: Приз | C5: Кол-во выигрышей | D5: Вероятность 1 к …
A6: 0 | B6: 0 | C6: =COMBIN(6,A6)*COMBIN(39,6-A6) -> 3262623 | D6: =$D$3/C6 -> 2.496475995
A7: 1 | B7: 0 | C7: =COMBIN(6,A7)*COMBIN(39,6-A7) -> 3454542 | D7: =$D$3/C7 -> 2.357782884
A8: 2 | B8: 50 | C8: =COMBIN(6,A8)*COMBIN(39,6-A8) -> 1233765 | D8: 6.601792075
A9: 3 | B9: 150 | C9: 182780 | D9: 44.56209651
A10: 4 | B10: 1500 | C10: 11115 | D10: 732.7989204
A11: 5 | B11: 100000 | C11: 234 | D11: 34807.94872
A12: 6 | B12: 10000000 | C12: =COMBIN(6,A12)*COMBIN(39,6-A12) -> 1 | D12: 8145060

Sheet Архив тиражей
A1: Дата | B1: Числа | E1: Число | F1: Сколько тиражей уже не выпадало
A2: 2021-12-31T23:00:00 | B2: 28-04-44-42-13-43 | E2: 35 | F2: =MATCH(TEXT(Таблица57[[#This Row],[Число]],"\*00\*"),таблАрхивТиражей[Числа],0) -> 47
A3: 2021-12-31T11:00:00 | B3: 07-17-33-23-12-16 | E3: 5 | F3: =MATCH(TEXT(Таблица57[[#This Row],[Число]],"\*00\*"),таблАрхивТиражей[Числа],0) -> 29
A4: 2021-12-30T23:00:00 | B4: 25-08-09-31-22-14 | E4: 39 | F4: =MATCH(TEXT(Таблица57[[#This Row],[Число]],"\*00\*"),таблАрхивТиражей[Числа],0) -> 21
A5: 2021-12-30T11:00:00 | B5: 43-30-28-41-44-38 | E5: 11 | F5: =MATCH(TEXT(Таблица57[[#This Row],[Число]],"\*00\*"),таблАрхивТиражей[Числа],0) -> 20
A6: 2021-12-29T23:00:00 | B6: 25-45-18-14-15-13 | E6: 6 | F6: =MATCH(TEXT(Таблица57[[#This Row],[Число]],"\*00\*"),таблАрхивТиражей[Числа],0) -> 20
A7: 2021-12-29T11:00:00 | B7: 02-14-17-15-03-07 | E7: 29 | F7: =MATCH(TEXT(Таблица57[[#This Row],[Число]],"\*00\*"),таблАрхивТиражей[Числа],0) -> 16
A8: 2021-12-28T23:00:00 | B8: 22-33-08-17-21-38 | E8: 10 | F8: =MATCH(TEXT(Таблица57[[#This Row],[Число]],"\*00\*"),таблАрхивТиражей[Числа],0) -> 15
A9: 2021-12-28T11:00:00 | B9: 15-04-20-13-34-19 | E9: 36 | F9: =MATCH(TEXT(Таблица57[[#This Row],[Число]],"\*00\*"),таблАрхивТиражей[Числа],0) -> 14
A10: 2021-12-27T23:00:00 | B10: 20-24-40-04-21-27 | E10: 1 | F10: =MATCH(TEXT(Таблица57[[#This Row],[Число]],"\*00\*"),таблАрхивТиражей[Числа],0) -> 13
A11: 2021-12-27T11:00:00 | B11: 09-32-17-42-18-14 | E11: 37 | F11: =MATCH(TEXT(Таблица57[[#This Row],[Число]],"\*00\*"),таблАрхивТиражей[Числа],0) -> 11
A12: 2021-12-26T23:00:00 | B12: 45-26-03-19-02-37 | E12: 26 | F12: =MATCH(TEXT(Таблица57[[#This Row],[Число]],"\*00\*"),таблАрхивТиражей[Числа],0) -> 11
A13: 2021-12-26T11:00:00 | B13: 23-27-12-03-17-16 | E13: 32 | F13: =MATCH(TEXT(Таблица57[[#This Row],[Число]],"\*00\*"),таблАрхивТиражей[Числа],0) -> 10
A14: 2021-12-25T23:00:00 | B14: 01-03-08-20-43-24 | E14: 40 | F14: =MATCH(TEXT(Таблица57[[#This Row],[Число]],"\*00\*"),таблАрхивТиражей[Числа],0) -> 9
A15: 2021-12-25T11:00:00 | B15: 42-17-15-13-36-33 | E15: 24 | F15: =MATCH(TEXT(Таблица57[[#This Row],[Число]],"\*00\*"),таблАрхивТиражей[Числа],0) -> 9
A16: 2021-12-24T23:00:00 | B16: 10-25-43-14-07-33 | E16: 27 | F16: =MATCH(TEXT(Таблица57[[#This Row],[Число]],"\*00\*"),таблАрхивТиражей[Числа],0) -> 9
A17: 2021-12-24T11:00:00 | B17: 14-15-27-29-20-22 | E17: 34 | F17: =MATCH(TEXT(Таблица57[[#This Row],[Число]],"\*00\*"),таблАрхивТиражей[Числа],0) -> 8
A18: 2021-12-23T23:00:00 | B18: 33-29-36-32-37-16 | E18: 20 | F18: =MATCH(TEXT(Таблица57[[#This Row],[Число]],"\*00\*"),таблАрхивТиражей[Числа],0) -> 8
A19: 2021-12-23T11:00:00 | B19: 27-31-09-29-07-26 | E19: 19 | F19: =MATCH(TEXT(Таблица57[[#This Row],[Число]],"\*00\*"),таблАрхивТиражей[Числа],0) -> 8
A20: 2021-12-22T23:00:00 | B20: 09-14-37-04-43-12 | E20: 21 | F20: =MATCH(TEXT(Таблица57[[#This Row],[Число]],"\*00\*"),таблАрхивТиражей[Числа],0) -> 7
A21: 2021-12-22T11:00:00 | B21: 02-11-42-41-06-36 | E21: 3 | F21: =MATCH(TEXT(Таблица57[[#This Row],[Число]],"\*00\*"),таблАрхивТиражей[Числа],0) -> 6
A22: 2021-12-21T23:00:00 | B22: 32-14-43-41-45-39 | E22: 2 | F22: =MATCH(TEXT(Таблица57[[#This Row],[Число]],"\*00\*"),таблАрхивТиражей[Числа],0) -> 6
A23: 2021-12-21T11:00:00 | B23: 09-30-32-26-08-16 | E23: 15 | F23: =MATCH(TEXT(Таблица57[[#This Row],[Число]],"\*00\*"),таблАрхивТиражей[Числа],0) -> 5
A24: 2021-12-20T23:00:00 | B24: 14-32-22-04-28-19 | E24: 18 | F24: =MATCH(TEXT(Таблица57[[#This Row],[Число]],"\*00\*"),таблАрхивТиражей[Числа],0) -> 5
A25: 2021-12-20T11:00:00 | B25: 06-07-12-17-33-19 | E25: 45 | F25: =MATCH(TEXT(Таблица57[[#This Row],[Число]],"\*00\*"),таблАрхивТиражей[Числа],0) -> 5
A26: 2021-12-19T23:00:00 | B26: 30-25-39-06-24-21 | E26: 30 | F26: =MATCH(TEXT(Таблица57[[#This Row],[Число]],"\*00\*"),таблАрхивТиражей[Числа],0) -> 4
A27: 2021-12-19T11:00:00 | B27: 22-09-17-33-23-26 | E27: 38 | F27: =MATCH(TEXT(Таблица57[[#This Row],[Число]],"\*00\*"),таблАрхивТиражей[Числа],0) -> 4
A28: 2021-12-18T23:00:00 | B28: 29-34-30-33-13-40 | E28: 41 | F28: =MATCH(TEXT(Таблица57[[#This Row],[Число]],"\*00\*"),таблАрхивТиражей[Числа],0) -> 4
A29: 2021-12-18T11:00:00 | B29: 03-26-15-02-38-37 | E29: 31 | F29: =MATCH(TEXT(Таблица57[[#This Row],[Число]],"\*00\*"),таблАрхивТиражей[Числа],0) -> 3
A30: 2021-12-17T23:00:00 | B30: 01-05-29-11-08-13 | E30: 8 | F30: =MATCH(TEXT(Таблица57[[#This Row],[Число]],"\*00\*"),таблАрхивТиражей[Числа],0) -> 3
A31: 2021-12-17T11:00:00 | B31: 12-14-32-29-45-02 | E31: 14 | F31: =MATCH(TEXT(Таблица57[[#This Row],[Число]],"\*00\*"),таблАрхивТиражей[Числа],0) -> 3
A32: 2021-12-16T23:00:00 | B32: 12-08-03-34-02-32 | E32: 25 | F32: =MATCH(TEXT(Таблица57[[#This Row],[Число]],"\*00\*"),таблАрхивТиражей[Числа],0) -> 3
A33: 2021-12-16T11:00:00 | B33: 08-38-25-04-24-31 | E33: 9 | F33: =MATCH(TEXT(Таблица57[[#This Row],[Число]],"\*00\*"),таблАрхивТиражей[Числа],0) -> 3
A34: 2021-12-15T23:00:00 | B34: 02-22-19-04-37-43 | E34: 22 | F34: =MATCH(TEXT(Таблица57[[#This Row],[Число]],"\*00\*"),таблАрхивТиражей[Числа],0) -> 3
A35: 2021-12-15T11:00:00 | B35: 07-10-23-11-44-20 | E35: 33 | F35: =MATCH(TEXT(Таблица57[[#This Row],[Число]],"\*00\*"),таблАрхивТиражей[Числа],0) -> 2
A36: 2021-12-14T23:00:00 | B36: 02-18-32-27-20-45 | E36: 7 | F36: =MATCH(TEXT(Таблица57[[#This Row],[Число]],"\*00\*"),таблАрхивТиражей[Числа],0) -> 2
A37: 2021-12-14T11:00:00 | B37: 27-04-34-40-05-12 | E37: 23 | F37: =MATCH(TEXT(Таблица57[[#This Row],[Число]],"\*00\*"),таблАрхивТиражей[Числа],0) -> 2
A38: 2021-12-13T23:00:00 | B38: 16-40-32-23-33-09 | E38: 12 | F38: =MATCH(TEXT(Таблица57[[#This Row],[Число]],"\*00\*"),таблАрхивТиражей[Числа],0) -> 2
A39: 2021-12-13T11:00:00 | B39: 36-34-37-40-01-26 | E39: 16 | F39: =MATCH(TEXT(Таблица57[[#This Row],[Число]],"\*00\*"),таблАрхивТиражей[Числа],0) -> 2
A40: 2021-12-12T23:00:00 | B40: 11-30-33-14-05-02 | E40: 17 | F40: =MATCH(TEXT(Таблица57[[#This Row],[Число]],"\*00\*"),таблАрхивТиражей[Числа],0) -> 2
A41: 2021-12-12T11:00:00 | B41: 31-22-43-23-37-27 | E41: 42 | F41: =MATCH(TEXT(Таблица57[[#This Row],[Число]],"\*00\*"),таблАрхивТиражей[Числа],0) -> 1
A42: 2021-12-11T23:00:00 | B42: 41-02-11-17-05-28 | E42: 44 | F42: =MATCH(TEXT(Таблица57[[#This Row],[Число]],"\*00\*"),таблАрхивТиражей[Числа],0) -> 1
A43: 2021-12-11T11:00:00 | B43: 01-39-18-19-26-31 | E43: 13 | F43: =MATCH(TEXT(Таблица57[[#This Row],[Число]],"\*00\*"),таблАрхивТиражей[Числа],0) -> 1
A44: 2021-12-10T23:00:00 | B44: 03-11-28-09-02-23 | E44: 28 | F44: =MATCH(TEXT(Таблица57[[#This Row],[Число]],"\*00\*"),таблАрхивТиражей[Числа],0) -> 1
A45: 2021-12-10T11:00:00 | B45: 14-37-13-27-44-05 | E45: 43 | F45: =MATCH(TEXT(Таблица57[[#This Row],[Число]],"\*00\*"),таблАрхивТиражей[Числа],0) -> 1
A46: 2021-12-09T23:00:00 | B46: 40-08-17-19-28-27 | E46: 4 | F46: =MATCH(TEXT(Таблица57[[#This Row],[Число]],"\*00\*"),таблАрхивТиражей[Числа],0) -> 1
A47: 2021-12-09T11:00:00 | B47: 40-23-27-33-43-19
A48: 2021-12-08T23:00:00 | B48: 33-25-31-02-35-34
A49: 2021-12-08T11:00:00 | B49: 21-01-15-37-25-31
A50: 2021-12-07T23:00:00 | B50: 41-20-45-03-17-21
A51: 2021-12-07T11:00:00 | B51: 16-18-14-42-17-06
A52: 2021-12-06T23:00:00 | B52: 01-08-30-26-06-21
A53: 2021-12-06T11:00:00 | B53: 04-03-39-10-08-41
A54: 2021-12-05T23:00:00 | B54: 06-12-07-31-27-39
A55: 2021-12-05T11:00:00 | B55: 33-39-24-04-37-17
A56: 2021-12-04T23:00:00 | B56: 17-30-28-36-22-31
A57: 2021-12-04T11:00:00 | B57: 07-27-21-01-10-14
A58: 2021-12-03T23:00:00 | B58: 44-07-10-31-42-27
A59: 2021-12-03T11:00:00 | B59: 27-01-25-13-34-18
A60: 2021-12-02T23:00:00 | B60: 28-11-07-35-16-29
A61: 2021-12-02T11:00:00 | B61: 12-34-19-37-30-13
A62: 2021-12-01T23:00:00 | B62: 11-10-43-18-38-39
A63: 2021-12-01T11:00:00 | B63: 12-35-28-36-13-03
A64: 2021-11-30T23:00:00 | B64: 21-07-22-24-25-32
A65: 2021-11-30T11:00:00 | B65: 37-07-30-17-38-45
A66: 2021-11-29T23:00:00 | B66: 30-33-44-20-16-19
A67: 2021-11-29T11:00:00 | B67: 27-37-22-09-39-24
A68: 2021-11-28T23:00:00 | B68: 05-16-28-40-32-31
A69: 2021-11-28T11:00:00 | B69: 39-16-35-43-23-28
A70: 2021-11-27T23:00:00 | B70: 22-39-09-25-43-26
A71: 2021-11-27T11:00:00 | B71: 04-03-24-05-38-34
A72: 2021-11-26T23:00:00 | B72: 19-16-34-30-07-25
A73: 2021-11-26T11:00:00 | B73: 19-23-28-32-36-20
A74: 2021-11-25T23:00:00 | B74: 03-25-02-16-42-11
A75: 2021-11-25T11:00:00 | B75: 22-12-25-33-44-29
A76: 2021-11-24T23:00:00 | B76: 06-08-45-25-34-26
A77: 2021-11-24T11:00:00 | B77: 14-32-45-35-17-37
A78: 2021-11-23T23:00:00 | B78: 05-14-42-29-38-17
A79: 2021-11-23T11:00:00 | B79: 40-04-28-39-44-13
A80: 2021-11-22T23:00:00 | B80: 42-27-31-30-19-43
A81: 2021-11-22T11:00:00 | B81: 39-17-34-12-13-33
A82: 2021-11-21T23:00:00 | B82: 43-32-05-04-21-13
A83: 2021-11-21T11:00:00 | B83: 23-45-31-33-11-36
A84: 2021-11-20T23:00:00 | B84: 30-27-03-04-05-36
A85: 2021-11-20T11:00:00 | B85: 10-18-11-30-38-15
A86: 2021-11-19T23:00:00 | B86: 06-33-24-02-23-16
A87: 2021-11-19T11:00:00 | B87: 01-13-25-05-11-33
A88: 2021-11-18T23:00:00 | B88: 11-33-31-28-26-25
A89: 2021-11-18T11:00:00 | B89: 33-26-40-16-19-41
A90: 2021-11-17T23:00:00 | B90: 36-41-07-06-23-15
A91: 2021-11-17T11:00:00 | B91: 25-42-21-37-33-17
A92: 2021-11-16T23:00:00 | B92: 19-43-14-02-28-26
A93: 2021-11-16T11:00:00 | B93: 42-33-14-36-37-12
A94: 2021-11-15T23:00:00 | B94: 08-06-24-20-23-34
A95: 2021-11-15T11:00:00 | B95: 35-09-33-20-38-43
A96: 2021-11-14T23:00:00 | B96: 40-09-43-31-34-44
A97: 2021-11-14T11:00:00 | B97: 09-40-17-08-01-42
A98: 2021-11-13T23:00:00 | B98: 12-02-10-38-39-35
A99: 2021-11-13T11:00:00 | B99: 36-40-45-23-14-21
A100: 2021-11-12T23:00:00 | B100: 16-18-32-03-07-28
A101: 2021-11-12T11:00:00 | B101: 42-23-12-07-10-25
A102: 2021-11-11T23:00:00 | B102: 36-39-33-18-45-10
A103: 2021-11-11T11:00:00 | B103: 16-09-17-27-08-32
A104: 2021-11-10T23:00:00 | B104: 20-33-41-12-31-04
A105: 2021-11-10T11:00:00 | B105: 08-23-38-27-39-30
A106: 2021-11-09T23:00:00 | B106: 13-18-09-19-01-11
A107: 2021-11-09T11:00:00 | B107: 18-21-44-11-40-24
A108: 2021-11-08T23:00:00 | B108: 40-08-35-01-27-02
A109: 2021-11-08T11:00:00 | B109: 09-30-13-12-24-05
A110: 2021-11-07T23:00:00 | B110: 03-12-25-04-45-11
A111: 2021-11-07T11:00:00 | B111: 42-07-04-22-36-30
A112: 2021-11-06T23:00:00 | B112: 45-29-20-27-03-10
A113: 2021-11-06T11:00:00 | B113: 27-09-14-18-13-39
A114: 2021-11-05T23:00:00 | B114: 29-39-23-03-18-35
A115: 2021-11-05T11:00:00 | B115: 15-44-07-18-19-45
A116: 2021-11-04T23:00:00 | B116: 36-42-17-41-11-23
A117: 2021-11-04T11:00:00 | B117: 42-22-04-18-03-39
A118: 2021-11-03T23:00:00 | B118: 41-01-24-23-33-45
A119: 2021-11-03T11:00:00 | B119: 34-12-22-32-30-38
A120: 2021-11-02T23:00:00 | B120: 09-07-18-42-28-33
A121: 2021-11-02T11:00:00 | B121: 34-27-16-32-05-01
A122: 2021-11-01T23:00:00 | B122: 31-43-17-18-19-26
A123: 2021-11-01T11:00:00 | B123: 39-23-17-33-40-36
A124: 2021-10-31T23:00:00 | B124: 22-25-07-09-36-40
A125: 2021-10-31T11:00:00 | B125: 19-15-45-10-44-07
A126: 2021-10-30T23:00:00 | B126: 16-18-11-28-09-40
A127: 2021-10-30T11:00:00 | B127: 27-29-37-24-16-34
A128: 2021-10-29T23:00:00 | B128: 10-36-03-28-12-24
A129: 2021-10-29T11:00:00 | B129: 24-35-28-03-18-27
A130: 2021-10-28T23:00:00 | B130: 10-27-32-12-44-11
A131: 2021-10-28T11:00:00 | B131: 40-24-42-37-08-15
A132: 2021-10-27T23:00:00 | B132: 29-24-26-05-28-10
A133: 2021-10-27T11:00:00 | B133: 27-32-08-15-23-42
A134: 2021-10-26T23:00:00 | B134: 22-30-35-33-19-36
A135: 2021-10-26T11:00:00 | B135: 23-34-45-11-39-27
A136: 2021-10-25T23:00:00 | B136: 43-27-44-24-02-22
A137: 2021-10-25T11:00:00 | B137: 38-28-21-33-06-09
A138: 2021-10-24T23:00:00 | B138: 03-10-32-15-21-27
A139: 2021-10-24T11:00:00 | B139: 42-39-03-11-07-23
A140: 2021-10-23T23:00:00 | B140: 24-14-18-38-37-26
A141: 2021-10-23T11:00:00 | B141: 27-28-31-20-40-04
A142: 2021-10-22T23:00:00 | B142: 07-40-37-33-26-34
A143: 2021-10-22T11:00:00 | B143: 41-25-14-42-28-02
A144: 2021-10-21T23:00:00 | B144: 27-07-24-13-30-34
A145: 2021-10-21T11:00:00 | B145: 38-24-11-08-32-35
A146: 2021-10-20T23:00:00 | B146: 41-20-26-29-02-22
A147: 2021-10-20T11:00:00 | B147: 11-39-24-03-36-27
A148: 2021-10-19T23:00:00 | B148: 02-23-39-12-17-30
A149: 2021-10-19T11:00:00 | B149: 19-27-01-26-45-21
A150: 2021-10-18T23:00:00 | B150: 07-26-11-39-03-25
A151: 2021-10-18T11:00:00 | B151: 09-34-04-24-15-39
A152: 2021-10-17T23:00:00 | B152: 37-22-17-16-21-41
A153: 2021-10-17T11:00:00 | B153: 24-05-43-31-16-40
A154: 2021-10-16T23:00:00 | B154: 03-18-23-33-27-32
A155: 2021-10-16T11:00:00 | B155: 43-32-20-11-12-38
A156: 2021-10-15T23:00:00 | B156: 34-33-15-43-11-22
A157: 2021-10-15T11:00:00 | B157: 31-17-29-38-27-30
A158: 2021-10-14T23:00:00 | B158: 09-14-12-44-04-36
A159: 2021-10-14T11:00:00 | B159: 36-11-45-32-44-18
A160: 2021-10-13T23:00:00 | B160: 25-29-35-02-32-39
A161: 2021-10-13T11:00:00 | B161: 37-07-11-13-40-03
A162: 2021-10-12T23:00:00 | B162: 39-02-09-12-34-25
A163: 2021-10-12T11:00:00 | B163: 23-35-40-17-44-37
A164: 2021-10-11T23:00:00 | B164: 27-01-39-08-05-17
A165: 2021-10-11T11:00:00 | B165: 39-05-16-06-40-09
A166: 2021-10-10T23:00:00 | B166: 02-05-10-16-41-23
A167: 2021-10-10T11:00:00 | B167: 01-35-28-10-27-11
A168: 2021-10-09T23:00:00 | B168: 19-32-12-30-45-11
A169: 2021-10-09T11:00:00 | B169: 44-15-32-41-33-14
A170: 2021-10-08T23:00:00 | B170: 25-17-03-16-45-12
A171: 2021-10-08T11:00:00 | B171: 24-12-34-21-23-06
A172: 2021-10-07T23:00:00 | B172: 13-30-05-11-17-03
A173: 2021-10-07T11:00:00 | B173: 34-27-09-35-21-11
A174: 2021-10-06T23:00:00 | B174: 37-20-30-05-07-28
A175: 2021-10-06T11:00:00 | B175: 28-15-21-13-31-22
A176: 2021-10-05T23:00:00 | B176: 03-39-42-44-28-32
A177: 2021-10-05T11:00:00 | B177: 14-06-25-34-26-17
A178: 2021-10-04T23:00:00 | B178: 21-04-24-45-05-30
A179: 2021-10-04T11:00:00 | B179: 22-17-38-19-14-18
A180: 2021-10-03T23:00:00 | B180: 37-15-17-18-22-39
A181: 2021-10-03T11:00:00 | B181: 07-01-30-37-06-27
A182: 2021-10-02T23:00:00 | B182: 09-15-41-45-36-35
A183: 2021-10-02T11:00:00 | B183: 32-41-18-35-08-24
A184: 2021-10-01T23:00:00 | B184: 13-09-02-25-44-38
A185: 2021-10-01T11:00:00 | B185: 35-04-16-31-07-45
A186: 2021-09-30T23:00:00 | B186: 41-09-40-23-27-42
A187: 2021-09-30T11:00:00 | B187: 18-07-19-24-10-20
A188: 2021-09-29T23:00:00 | B188: 36-24-11-27-32-03
A189: 2021-09-29T11:00:00 | B189: 07-14-41-08-33-12
A190: 2021-09-28T23:00:00 | B190: 26-23-44-07-18-27
A191: 2021-09-28T11:00:00 | B191: 13-16-26-17-18-35
A192: 2021-09-27T23:00:00 | B192: 14-01-34-03-06-23
A193: 2021-09-27T11:00:00 | B193: 37-45-41-26-20-08
A194: 2021-09-26T23:00:00 | B194: 28-30-31-16-20-24
A195: 2021-09-26T11:00:00 | B195: 39-38-15-02-12-42
A196: 2021-09-25T23:00:00 | B196: 37-43-42-14-01-34
A197: 2021-09-25T11:00:00 | B197: 25-02-34-24-08-19
A198: 2021-09-24T23:00:00 | B198: 22-15-29-39-03-21
A199: 2021-09-24T11:00:00 | B199: 13-11-35-22-07-24
A200: 2021-09-23T23:00:00 | B200: 43-30-22-24-17-03
... 1260 more rows

Sheet Частота
A1: Число | B1: Выпало раз | C1: Среднее
A2: 27 | B2: =COUNTIF(таблАрхивТиражей[Числа],TEXT(таблЧастоты[[#This Row],[Число]],"\*00\*")) -> 230 | C2: =COUNTA(таблАрхивТиражей[Дата])*6/45 -> 194.5333333
A3: 32 | B3: =COUNTIF(таблАрхивТиражей[Числа],TEXT(таблЧастоты[[#This Row],[Число]],"\*00\*")) -> 223 | C3: =COUNTA(таблАрхивТиражей[Дата])*6/45 -> 194.5333333
A4: 11 | B4: =COUNTIF(таблАрхивТиражей[Числа],TEXT(таблЧастоты[[#This Row],[Число]],"\*00\*")) -> 221 | C4: =COUNTA(таблАрхивТиражей[Дата])*6/45 -> 194.5333333
A5: 14 | B5: =COUNTIF(таблАрхивТиражей[Числа],TEXT(таблЧастоты[[#This Row],[Число]],"\*00\*")) -> 220 | C5: =COUNTA(таблАрхивТиражей[Дата])*6/45 -> 194.5333333
A6: 34 | B6: =COUNTIF(таблАрхивТиражей[Числа],TEXT(таблЧастоты[[#This Row],[Число]],"\*00\*")) -> 215 | C6: =COUNTA(таблАрхивТиражей[Дата])*6/45 -> 194.5333333
A7: 40 | B7: =COUNTIF(таблАрхивТиражей[Числа],TEXT(таблЧастоты[[#This Row],[Число]],"\*00\*")) -> 212 | C7: =COUNTA(таблАрхивТиражей[Дата])*6/45 -> 194.5333333
A8: 22 | B8: =COUNTIF(таблАрхивТиражей[Числа],TEXT(таблЧастоты[[#This Row],[Число]],"\*00\*")) -> 208 | C8: =COUNTA(таблАрхивТиражей[Дата])*6/45 -> 194.5333333
A9: 7 | B9: =COUNTIF(таблАрхивТиражей[Числа],TEXT(таблЧастоты[[#This Row],[Число]],"\*00\*")) -> 207 | C9: =COUNTA(таблАрхивТиражей[Дата])*6/45 -> 194.5333333
A10: 43 | B10: =COUNTIF(таблАрхивТиражей[Числа],TEXT(таблЧастоты[[#This Row],[Число]],"\*00\*")) -> 205 | C10: =COUNTA(таблАрхивТиражей[Дата])*6/45 -> 194.5333333
A11: 24 | B11: =COUNTIF(таблАрхивТиражей[Числа],TEXT(таблЧастоты[[#This Row],[Число]],"\*00\*")) -> 204 | C11: =COUNTA(таблАрхивТиражей[Дата])*6/45 -> 194.5333333
A12: 30 | B12: =COUNTIF(таблАрхивТиражей[Числа],TEXT(таблЧастоты[[#This Row],[Число]],"\*00\*")) -> 204 | C12: =COUNTA(таблАрхивТиражей[Дата])*6/45 -> 194.5333333
A13: 29 | B13: =COUNTIF(таблАрхивТиражей[Числа],TEXT(таблЧастоты[[#This Row],[Число]],"\*00\*")) -> 204 | C13: =COUNTA(таблАрхивТиражей[Дата])*6/45 -> 194.5333333
A14: 39 | B14: =COUNTIF(таблАрхивТиражей[Числа],TEXT(таблЧастоты[[#This Row],[Число]],"\*00\*")) -> 203 | C14: =COUNTA(таблАрхивТиражей[Дата])*6/45 -> 194.5333333
A15: 41 | B15: =COUNTIF(таблАрхивТиражей[Числа],TEXT(таблЧастоты[[#This Row],[Число]],"\*00\*")) -> 203 | C15: =COUNTA(таблАрхивТиражей[Дата])*6/45 -> 194.5333333
A16: 38 | B16: =COUNTIF(таблАрхивТиражей[Числа],TEXT(таблЧастоты[[#This Row],[Число]],"\*00\*")) -> 202 | C16: =COUNTA(таблАрхивТиражей[Дата])*6/45 -> 194.5333333
A17: 3 | B17: =COUNTIF(таблАрхивТиражей[Числа],TEXT(таблЧастоты[[#This Row],[Число]],"\*00\*")) -> 201 | C17: =COUNTA(таблАрхивТиражей[Дата])*6/45 -> 194.5333333
A18: 42 | B18: =COUNTIF(таблАрхивТиражей[Числа],TEXT(таблЧастоты[[#This Row],[Число]],"\*00\*")) -> 200 | C18: =COUNTA(таблАрхивТиражей[Дата])*6/45 -> 194.5333333
A19: 23 | B19: =COUNTIF(таблАрхивТиражей[Числа],TEXT(таблЧастоты[[#This Row],[Число]],"\*00\*")) -> 198 | C19: =COUNTA(таблАрхивТиражей[Дата])*6/45 -> 194.5333333
A20: 17 | B20: =COUNTIF(таблАрхивТиражей[Числа],TEXT(таблЧастоты[[#This Row],[Число]],"\*00\*")) -> 197 | C20: =COUNTA(таблАрхивТиражей[Дата])*6/45 -> 194.5333333
A21: 2 | B21: =COUNTIF(таблАрхивТиражей[Числа],TEXT(таблЧастоты[[#This Row],[Число]],"\*00\*")) -> 196 | C21: =COUNTA(таблАрхивТиражей[Дата])*6/45 -> 194.5333333
A22: 9 | B22: =COUNTIF(таблАрхивТиражей[Числа],TEXT(таблЧастоты[[#This Row],[Число]],"\*00\*")) -> 195 | C22: =COUNTA(таблАрхивТиражей[Дата])*6/45 -> 194.5333333
A23: 33 | B23: =COUNTIF(таблАрхивТиражей[Числа],TEXT(таблЧастоты[[#This Row],[Число]],"\*00\*")) -> 193 | C23: =COUNTA(таблАрхивТиражей[Дата])*6/45 -> 194.5333333
A24: 25 | B24: =COUNTIF(таблАрхивТиражей[Числа],TEXT(таблЧастоты[[#This Row],[Число]],"\*00\*")) -> 193 | C24: =COUNTA(таблАрхивТиражей[Дата])*6/45 -> 194.5333333
A25: 5 | B25: =COUNTIF(таблАрхивТиражей[Числа],TEXT(таблЧастоты[[#This Row],[Число]],"\*00\*")) -> 193 | C25: =COUNTA(таблАрхивТиражей[Дата])*6/45 -> 194.5333333
A26: 13 | B26: =COUNTIF(таблАрхивТиражей[Числа],TEXT(таблЧастоты[[#This Row],[Число]],"\*00\*")) -> 193 | C26: =COUNTA(таблАрхивТиражей[Дата])*6/45 -> 194.5333333
A27: 16 | B27: =COUNTIF(таблАрхивТиражей[Числа],TEXT(таблЧастоты[[#This Row],[Число]],"\*00\*")) -> 193 | C27: =COUNTA(таблАрхивТиражей[Дата])*6/45 -> 194.5333333
A28: 37 | B28: =COUNTIF(таблАрхивТиражей[Числа],TEXT(таблЧастоты[[#This Row],[Число]],"\*00\*")) -> 192 | C28: =COUNTA(таблАрхивТиражей[Дата])*6/45 -> 194.5333333
A29: 45 | B29: =COUNTIF(таблАрхивТиражей[Числа],TEXT(таблЧастоты[[#This Row],[Число]],"\*00\*")) -> 192 | C29: =COUNTA(таблАрхивТиражей[Дата])*6/45 -> 194.5333333
A30: 19 | B30: =COUNTIF(таблАрхивТиражей[Числа],TEXT(таблЧастоты[[#This Row],[Число]],"\*00\*")) -> 191 | C30: =COUNTA(таблАрхивТиражей[Дата])*6/45 -> 194.5333333
A31: 31 | B31: =COUNTIF(таблАрхивТиражей[Числа],TEXT(таблЧастоты[[#This Row],[Число]],"\*00\*")) -> 188 | C31: =COUNTA(таблАрхивТиражей[Дата])*6/45 -> 194.5333333
A32: 8 | B32: =COUNTIF(таблАрхивТиражей[Числа],TEXT(таблЧастоты[[#This Row],[Число]],"\*00\*")) -> 188 | C32: =COUNTA(таблАрхивТиражей[Дата])*6/45 -> 194.5333333
A33: 1 | B33: =COUNTIF(таблАрхивТиражей[Числа],TEXT(таблЧастоты[[#This Row],[Число]],"\*00\*")) -> 188 | C33: =COUNTA(таблАрхивТиражей[Дата])*6/45 -> 194.5333333
A34: 4 | B34: =COUNTIF(таблАрхивТиражей[Числа],TEXT(таблЧастоты[[#This Row],[Число]],"\*00\*")) -> 187 | C34: =COUNTA(таблАрхивТиражей[Дата])*6/45 -> 194.5333333
A35: 15 | B35: =COUNTIF(таблАрхивТиражей[Числа],TEXT(таблЧастоты[[#This Row],[Число]],"\*00\*")) -> 185 | C35: =COUNTA(таблАрхивТиражей[Дата])*6/45 -> 194.5333333
A36: 35 | B36: =COUNTIF(таблАрхивТиражей[Числа],TEXT(таблЧастоты[[#This Row],[Число]],"\*00\*")) -> 183 | C36: =COUNTA(таблАрхивТиражей[Дата])*6/45 -> 194.5333333
A37: 44 | B37: =COUNTIF(таблАрхивТиражей[Числа],TEXT(таблЧастоты[[#This Row],[Число]],"\*00\*")) -> 183 | C37: =COUNTA(таблАрхивТиражей[Дата])*6/45 -> 194.5333333
A38: 28 | B38: =COUNTIF(таблАрхивТиражей[Числа],TEXT(таблЧастоты[[#This Row],[Число]],"\*00\*")) -> 182 | C38: =COUNTA(таблАрхивТиражей[Дата])*6/45 -> 194.5333333
A39: 20 | B39: =COUNTIF(таблАрхивТиражей[Числа],TEXT(таблЧастоты[[#This Row],[Число]],"\*00\*")) -> 179 | C39: =COUNTA(таблАрхивТиражей[Дата])*6/45 -> 194.5333333
A40: 36 | B40: =COUNTIF(таблАрхивТиражей[Числа],TEXT(таблЧастоты[[#This Row],[Число]],"\*00\*")) -> 178 | C40: =COUNTA(таблАрхивТиражей[Дата])*6/45 -> 194.5333333
A41: 12 | B41: =COUNTIF(таблАрхивТиражей[Числа],TEXT(таблЧастоты[[#This Row],[Число]],"\*00\*")) -> 178 | C41: =COUNTA(таблАрхивТиражей[Дата])*6/45 -> 194.5333333
A42: 18 | B42: =COUNTIF(таблАрхивТиражей[Числа],TEXT(таблЧастоты[[#This Row],[Число]],"\*00\*")) -> 178 | C42: =COUNTA(таблАрхивТиражей[Дата])*6/45 -> 194.5333333
A43: 26 | B43: =COUNTIF(таблАрхивТиражей[Числа],TEXT(таблЧастоты[[#This Row],[Число]],"\*00\*")) -> 174 | C43: =COUNTA(таблАрхивТиражей[Дата])*6/45 -> 194.5333333
A44: 10 | B44: =COUNTIF(таблАрхивТиражей[Числа],TEXT(таблЧастоты[[#This Row],[Число]],"\*00\*")) -> 166 | C44: =COUNTA(таблАрхивТиражей[Дата])*6/45 -> 194.5333333
A45: 21 | B45: =COUNTIF(таблАрхивТиражей[Числа],TEXT(таблЧастоты[[#This Row],[Число]],"\*00\*")) -> 165 | C45: =COUNTA(таблАрхивТиражей[Дата])*6/45 -> 194.5333333
A46: 6 | B46: =COUNTIF(таблАрхивТиражей[Числа],TEXT(таблЧастоты[[#This Row],[Число]],"\*00\*")) -> 164 | C46: =COUNTA(таблАрхивТиражей[Дата])*6/45 -> 194.5333333

Sheet Генератор
A1: Число | B1: Вес | C1: Случайное число | D1: Ранг
A2: 1 | B2: 1 | C2: =RAND()*таблГенератор[[#This Row],[Вес]]/SUM(таблГенератор[Вес]) -> 0.01449441404 | D2: =RANK(таблГенератор[[#This Row],[Случайное число]],таблГенератор[Случайное число]) -> 13 | G2: Выбранные числа
A3: 2 | B3: 1 | C3: =RAND()*таблГенератор[[#This Row],[Вес]]/SUM(таблГенератор[Вес]) -> 0.005458041295 | D3: =RANK(таблГенератор[[#This Row],[Случайное число]],таблГенератор[Случайное число]) -> 30 | G3: 1 | H3: 2 | I3: 3 | J3: 4 | K3: 5 | L3: 6
A4: 3 | B4: 1 | C4: =RAND()*таблГенератор[[#This Row],[Вес]]/SUM(таблГенератор[Вес]) -> 0.0221735818 | D4: =RANK(таблГенератор[[#This Row],[Случайное число]],таблГенератор[Случайное число]) -> 1 | G4: 12 | H4: 18 | I4: 26 | J4: 10 | K4: 21 | L4: 6
A5: 4 | B5: 1 | C5: =RAND()*таблГенератор[[#This Row],[Вес]]/SUM(таблГенератор[Вес]) -> 0.02145746355 | D5: =RANK(таблГенератор[[#This Row],[Случайное число]],таблГенератор[Случайное число]) -> 2
A6: 5 | B6: 1 | C6: =RAND()*таблГенератор[[#This Row],[Вес]]/SUM(таблГенератор[Вес]) -> 0.007430353895 | D6: =RANK(таблГенератор[[#This Row],[Случайное число]],таблГенератор[Случайное число]) -> 26
A7: 6 | B7: 1 | C7: =RAND()*таблГенератор[[#This Row],[Вес]]/SUM(таблГенератор[Вес]) -> 0.003821115411 | D7: =RANK(таблГенератор[[#This Row],[Случайное число]],таблГенератор[Случайное число]) -> 36
A8: 7 | B8: 1 | C8: =RAND()*таблГенератор[[#This Row],[Вес]]/SUM(таблГенератор[Вес]) -> 0.01721288741 | D8: =RANK(таблГенератор[[#This Row],[Случайное число]],таблГенератор[Случайное число]) -> 8 | G8: =MATCH(G$3,таблГенератор[[Ранг]:[Ранг]],0) -> 3 | H8: =MATCH(H$3,таблГенератор[[Ранг]:[Ранг]],0) -> 4 | I8: =MATCH(I$3,таблГенератор[[Ранг]:[Ранг]],0) -> 39 | J8: =MATCH(J$3,таблГенератор[[Ранг]:[Ранг]],0) -> 11 | K8: =MATCH(K$3,таблГенератор[[Ранг]:[Ранг]],0) -> 32 | L8: =MATCH(L$3,таблГенератор[[Ранг]:[Ранг]],0) -> 33
A9: 8 | B9: 1 | C9: =RAND()*таблГенератор[[#This Row],[Вес]]/SUM(таблГенератор[Вес]) -> 0.01533163314 | D9: =RANK(таблГенератор[[#This Row],[Случайное число]],таблГенератор[Случайное число]) -> 12 | G9: =MATCH(G$3+6,таблГенератор[[Ранг]:[Ранг]],0) -> 12 | H9: =MATCH(H$3+6,таблГенератор[[Ранг]:[Ранг]],0) -> 7 | I9: =MATCH(I$3+6,таблГенератор[[Ранг]:[Ранг]],0) -> 38 | J9: =MATCH(J$3+6,таблГенератор[[Ранг]:[Ранг]],0) -> 23 | K9: =MATCH(K$3+6,таблГенератор[[Ранг]:[Ранг]],0) -> 45 | L9: =MATCH(L$3+6,таблГенератор[[Ранг]:[Ранг]],0) -> 8
A10: 9 | B10: 1 | C10: =RAND()*таблГенератор[[#This Row],[Вес]]/SUM(таблГенератор[Вес]) -> 0.001001817212 | D10: =RANK(таблГенератор[[#This Row],[Случайное число]],таблГенератор[Случайное число]) -> 44
A11: 10 | B11: 1 | C11: =RAND()*таблГенератор[[#This Row],[Вес]]/SUM(таблГенератор[Вес]) -> 0.001056040028 | D11: =RANK(таблГенератор[[#This Row],[Случайное число]],таблГенератор[Случайное число]) -> 43
A12: 11 | B12: 1 | C12: =RAND()*таблГенератор[[#This Row],[Вес]]/SUM(таблГенератор[Вес]) -> 0.02086332319 | D12: =RANK(таблГенератор[[#This Row],[Случайное число]],таблГенератор[Случайное число]) -> 4
A13: 12 | B13: 1 | C13: =RAND()*таблГенератор[[#This Row],[Вес]]/SUM(таблГенератор[Вес]) -> 0.01732134969 | D13: =RANK(таблГенератор[[#This Row],[Случайное число]],таблГенератор[Случайное число]) -> 7
A14: 13 | B14: 1 | C14: =RAND()*таблГенератор[[#This Row],[Вес]]/SUM(таблГенератор[Вес]) -> 0.009933701085 | D14: =RANK(таблГенератор[[#This Row],[Случайное число]],таблГенератор[Случайное число]) -> 22
A15: 14 | B15: 1 | C15: =RAND()*таблГенератор[[#This Row],[Вес]]/SUM(таблГенератор[Вес]) -> 0.002532836744 | D15: =RANK(таблГенератор[[#This Row],[Случайное число]],таблГенератор[Случайное число]) -> 37
A16: 15 | B16: 1 | C16: =RAND()*таблГенератор[[#This Row],[Вес]]/SUM(таблГенератор[Вес]) -> 0.01446130192 | D16: =RANK(таблГенератор[[#This Row],[Случайное число]],таблГенератор[Случайное число]) -> 14
A17: 16 | B17: 1 | C17: =RAND()*таблГенератор[[#This Row],[Вес]]/SUM(таблГенератор[Вес]) -> 0.006717452838 | D17: =RANK(таблГенератор[[#This Row],[Случайное число]],таблГенератор[Случайное число]) -> 27
A18: 17 | B18: 1 | C18: =RAND()*таблГенератор[[#This Row],[Вес]]/SUM(таблГенератор[Вес]) -> 0.005754664373 | D18: =RANK(таблГенератор[[#This Row],[Случайное число]],таблГенератор[Случайное число]) -> 29
A19: 18 | B19: 1 | C19: =RAND()*таблГенератор[[#This Row],[Вес]]/SUM(таблГенератор[Вес]) -> 0.004065217823 | D19: =RANK(таблГенератор[[#This Row],[Случайное число]],таблГенератор[Случайное число]) -> 33
A20: 19 | B20: 1 | C20: =RAND()*таблГенератор[[#This Row],[Вес]]/SUM(таблГенератор[Вес]) -> 0.004266343105 | D20: =RANK(таблГенератор[[#This Row],[Случайное число]],таблГенератор[Случайное число]) -> 32
A21: 20 | B21: 1 | C21: =RAND()*таблГенератор[[#This Row],[Вес]]/SUM(таблГенератор[Вес]) -> 0.001521457425 | D21: =RANK(таблГенератор[[#This Row],[Случайное число]],таблГенератор[Случайное число]) -> 41
A22: 21 | B22: 1 | C22: =RAND()*таблГенератор[[#This Row],[Вес]]/SUM(таблГенератор[Вес]) -> 0.0132014784 | D22: =RANK(таблГенератор[[#This Row],[Случайное число]],таблГенератор[Случайное число]) -> 17
A23: 22 | B23: 1 | C23: =RAND()*таблГенератор[[#This Row],[Вес]]/SUM(таблГенератор[Вес]) -> 0.002243645903 | D23: =RANK(таблГенератор[[#This Row],[Случайное число]],таблГенератор[Случайное число]) -> 38
A24: 23 | B24: 1 | C24: =RAND()*таблГенератор[[#This Row],[Вес]]/SUM(таблГенератор[Вес]) -> 0.01631080779 | D24: =RANK(таблГенератор[[#This Row],[Случайное число]],таблГенератор[Случайное число]) -> 10
A25: 24 | B25: 1 | C25: =RAND()*таблГенератор[[#This Row],[Вес]]/SUM(таблГенератор[Вес]) -> 0.004042563252 | D25: =RANK(таблГенератор[[#This Row],[Случайное число]],таблГенератор[Случайное число]) -> 34
A26: 25 | B26: 1 | C26: =RAND()*таблГенератор[[#This Row],[Вес]]/SUM(таблГенератор[Вес]) -> 0.009627859412 | D26: =RANK(таблГенератор[[#This Row],[Случайное число]],таблГенератор[Случайное число]) -> 23
A27: 26 | B27: 1 | C27: =RAND()*таблГенератор[[#This Row],[Вес]]/SUM(таблГенератор[Вес]) -> 0.009066212273 | D27: =RANK(таблГенератор[[#This Row],[Случайное число]],таблГенератор[Случайное число]) -> 24
A28: 27 | B28: 1 | C28: =RAND()*таблГенератор[[#This Row],[Вес]]/SUM(таблГенератор[Вес]) -> 0.007934948944 | D28: =RANK(таблГенератор[[#This Row],[Случайное число]],таблГенератор[Случайное число]) -> 25
A29: 28 | B29: 1 | C29: =RAND()*таблГенератор[[#This Row],[Вес]]/SUM(таблГенератор[Вес]) -> 0.01060659304 | D29: =RANK(таблГенератор[[#This Row],[Случайное число]],таблГенератор[Случайное число]) -> 20
A30: 29 | B30: 1 | C30: =RAND()*таблГенератор[[#This Row],[Вес]]/SUM(таблГенератор[Вес]) -> 0.001892651463 | D30: =RANK(таблГенератор[[#This Row],[Случайное число]],таблГенератор[Случайное число]) -> 40
A31: 30 | B31: 1 | C31: =RAND()*таблГенератор[[#This Row],[Вес]]/SUM(таблГенератор[Вес]) -> 0.01378800204 | D31: =RANK(таблГенератор[[#This Row],[Случайное число]],таблГенератор[Случайное число]) -> 15
A32: 31 | B32: 1 | C32: =RAND()*таблГенератор[[#This Row],[Вес]]/SUM(таблГенератор[Вес]) -> 0.003836922198 | D32: =RANK(таблГенератор[[#This Row],[Случайное число]],таблГенератор[Случайное число]) -> 35
A33: 32 | B33: 1 | C33: =RAND()*таблГенератор[[#This Row],[Вес]]/SUM(таблГенератор[Вес]) -> 0.01943184026 | D33: =RANK(таблГенератор[[#This Row],[Случайное число]],таблГенератор[Случайное число]) -> 5
A34: 33 | B34: 1 | C34: =RAND()*таблГенератор[[#This Row],[Вес]]/SUM(таблГенератор[Вес]) -> 0.01880851556 | D34: =RANK(таблГенератор[[#This Row],[Случайное число]],таблГенератор[Случайное число]) -> 6
A35: 34 | B35: 1 | C35: =RAND()*таблГенератор[[#This Row],[Вес]]/SUM(таблГенератор[Вес]) -> 0.01158938533 | D35: =RANK(таблГенератор[[#This Row],[Случайное число]],таблГенератор[Случайное число]) -> 19
A36: 35 | B36: 1 | C36: =RAND()*таблГенератор[[#This Row],[Вес]]/SUM(таблГенератор[Вес]) -> 0.006686894728 | D36: =RANK(таблГенератор[[#This Row],[Случайное число]],таблГенератор[Случайное число]) -> 28
A37: 36 | B37: 1 | C37: =RAND()*таблГенератор[[#This Row],[Вес]]/SUM(таблГенератор[Вес]) -> 0.00106769594 | D37: =RANK(таблГенератор[[#This Row],[Случайное число]],таблГенератор[Случайное число]) -> 42
A38: 37 | B38: 1 | C38: =RAND()*таблГенератор[[#This Row],[Вес]]/SUM(таблГенератор[Вес]) -> 0.005308153817 | D38: =RANK(таблГенератор[[#This Row],[Случайное число]],таблГенератор[Случайное число]) -> 31
A39: 38 | B39: 1 | C39: =RAND()*таблГенератор[[#This Row],[Вес]]/SUM(таблГенератор[Вес]) -> 0.0168762692 | D39: =RANK(таблГенератор[[#This Row],[Случайное число]],таблГенератор[Случайное число]) -> 9
A40: 39 | B40: 1 | C40: =RAND()*таблГенератор[[#This Row],[Вес]]/SUM(таблГенератор[Вес]) -> 0.02129421273 | D40: =RANK(таблГенератор[[#This Row],[Случайное число]],таблГенератор[Случайное число]) -> 3
A41: 40 | B41: 1 | C41: =RAND()*таблГенератор[[#This Row],[Вес]]/SUM(таблГенератор[Вес]) -> 0.01046042317 | D41: =RANK(таблГенератор[[#This Row],[Случайное число]],таблГенератор[Случайное число]) -> 21
A42: 41 | B42: 1 | C42: =RAND()*таблГенератор[[#This Row],[Вес]]/SUM(таблГенератор[Вес]) -> 0.0006118281012 | D42: =RANK(таблГенератор[[#This Row],[Случайное число]],таблГенератор[Случайное число]) -> 45
A43: 42 | B43: 1 | C43: =RAND()*таблГенератор[[#This Row],[Вес]]/SUM(таблГенератор[Вес]) -> 0.01349146891 | D43: =RANK(таблГенератор[[#This Row],[Случайное число]],таблГенератор[Случайное число]) -> 16
A44: 43 | B44: 1 | C44: =RAND()*таблГенератор[[#This Row],[Вес]]/SUM(таблГенератор[Вес]) -> 0.0131980679 | D44: =RANK(таблГенератор[[#This Row],[Случайное число]],таблГенератор[Случайное число]) -> 18
A45: 44 | B45: 1 | C45: =RAND()*таблГенератор[[#This Row],[Вес]]/SUM(таблГенератор[Вес]) -> 0.002039349792 | D45: =RANK(таблГенератор[[#This Row],[Случайное число]],таблГенератор[Случайное число]) -> 39
A46: 45 | B46: 1 | C46: =RAND()*таблГенератор[[#This Row],[Вес]]/SUM(таблГенератор[Вес]) -> 0.01627697778 | D46: =RANK(таблГенератор[[#This Row],[Случайное число]],таблГенератор[Случайное число]) -> 11

Sheet Игра
B1: Кол-во тиражей, в которых играем | C1: 82 | E1: Стоимость билетов | K1: =C1*C2*50 -> 4100
B2: Билетов на каждый тираж | C2: 1 | E2: Суммарный выигрыш | K2: =SUM(таблИгра[Результат]) -> -3300
A4: Дата тиража | B4: Номер тиража | C4: Суперприз | D4: Выпавшие числа | E4: Ч1 | F4: Ч2 | G4: Ч3 | H4: Ч4 | I4: Ч5 | J4: Ч6 | K4: Г1 | L4: Г2 | M4: Г3 | N4: Г4 | O4: Г5 | P4: Г6 | Q4: Совпадения | R4: Результат | S4: Нараст.итог
A5: 2022-01-01T11:00:00 | B5: 6312 | C5: 10000000 | D5: 37-23-44-16-21-05 | E5: 37 | F5: 23 | G5: 44 | H5: 16 | I5: 21 | J5: 5 | K5: 12 | L5: 18 | M5: 26 | N5: 10 | O5: 21 | P5: 6 | Q5: =SUMPRODUCT(--(таблИгра[[#This Row],[Ч1]:[Ч6]]=TRANSPOSE(таблИгра[[#This Row],[Г1]:[Г6]]))) -> 1 | R5: =_xlfn.SWITCH(таблИгра[[#This Row],[Совпадения]],0,0,1,0,2,50,3,150,4,1500,5,100000,таблИгра[[#This Row],[Суперприз]])-50 -> -50 | S5: =SUM($R$4:таблИгра[[#This Row],[Результат]]) -> -50
A6: 2022-01-01T23:00:00 | B6: 6313 | C6: 10000000 | D6: 24-30-31-15-16-22 | E6: 24 | F6: 30 | G6: 31 | H6: 15 | I6: 16 | J6: 22 | K6: 12 | L6: 18 | M6: 26 | N6: 10 | O6: 21 | P6: 6 | Q6: =SUMPRODUCT(--(таблИгра[[#This Row],[Ч1]:[Ч6]]=TRANSPOSE(таблИгра[[#This Row],[Г1]:[Г6]]))) -> 0 | R6: =_xlfn.SWITCH(таблИгра[[#This Row],[Совпадения]],0,0,1,0,2,50,3,150,4,1500,5,100000,таблИгра[[#This Row],[Суперприз]])-50 -> -50 | S6: =SUM($R$4:таблИгра[[#This Row],[Результат]]) -> -100
A7: 2022-01-02T11:00:00 | B7: 6314 | C7: 10000000 | D7: 37-27-26-40-17-30 | E7: 37 | F7: 27 | G7: 26 | H7: 40 | I7: 17 | J7: 30 | K7: 12 | L7: 18 | M7: 26 | N7: 10 | O7: 21 | P7: 6 | Q7: =SUMPRODUCT(--(таблИгра[[#This Row],[Ч1]:[Ч6]]=TRANSPOSE(таблИгра[[#This Row],[Г1]:[Г6]]))) -> 1 | R7: =_xlfn.SWITCH(таблИгра[[#This Row],[Совпадения]],0,0,1,0,2,50,3,150,4,1500,5,100000,таблИгра[[#This Row],[Суперприз]])-50 -> -50 | S7: =SUM($R$4:таблИгра[[#This Row],[Результат]]) -> -150
A8: 2022-01-02T23:00:00 | B8: 6315 | C8: 10000000 | D8: 13-26-22-23-40-18 | E8: 13 | F8: 26 | G8: 22 | H8: 23 | I8: 40 | J8: 18 | K8: 12 | L8: 18 | M8: 26 | N8: 10 | O8: 21 | P8: 6 | Q8: =SUMPRODUCT(--(таблИгра[[#This Row],[Ч1]:[Ч6]]=TRANSPOSE(таблИгра[[#This Row],[Г1]:[Г6]]))) -> 2 | R8: =_xlfn.SWITCH(таблИгра[[#This Row],[Совпадения]],0,0,1,0,2,50,3,150,4,1500,5,100000,таблИгра[[#This Row],[Суперприз]])-50 -> 0 | S8: =SUM($R$4:таблИгра[[#This Row],[Результат]]) -> -150
A9: 2022-01-03T11:00:00 | B9: 6316 | C9: 10000000 | D9: 29-09-27-44-06-22 | E9: 29 | F9: 9 | G9: 27 | H9: 44 | I9: 6 | J9: 22 | K9: 12 | L9: 18 | M9: 26 | N9: 10 | O9: 21 | P9: 6 | Q9: =SUMPRODUCT(--(таблИгра[[#This Row],[Ч1]:[Ч6]]=TRANSPOSE(таблИгра[[#This Row],[Г1]:[Г6]]))) -> 1 | R9: =_xlfn.SWITCH(таблИгра[[#This Row],[Совпадения]],0,0,1,0,2,50,3,150,4,1500,5,100000,таблИгра[[#This Row],[Суперприз]])-50 -> -50 | S9: =SUM($R$4:таблИгра[[#This Row],[Результат]]) -> -200
A10: 2022-01-03T23:00:00 | B10: 6317 | C10: 10000000 | D10: 42-43-29-10-41-01 | E10: 42 | F10: 43 | G10: 29 | H10: 10 | I10: 41 | J10: 1 | K10: 12 | L10: 18 | M10: 26 | N10: 10 | O10: 21 | P10: 6 | Q10: =SUMPRODUCT(--(таблИгра[[#This Row],[Ч1]:[Ч6]]=TRANSPOSE(таблИгра[[#This Row],[Г1]:[Г6]]))) -> 1 | R10: =_xlfn.SWITCH(таблИгра[[#This Row],[Совпадения]],0,0,1,0,2,50,3,150,4,1500,5,100000,таблИгра[[#This Row],[Суперприз]])-50 -> -50 | S10: =SUM($R$4:таблИгра[[#This Row],[Результат]]) -> -250
A11: 2022-01-04T11:00:00 | B11: 6318 | C11: 10000000 | D11: 37-02-23-44-05-22 | E11: 37 | F11: 2 | G11: 23 | H11: 44 | I11: 5 | J11: 22 | K11: 12 | L11: 18 | M11: 26 | N11: 10 | O11: 21 | P11: 6 | Q11: =SUMPRODUCT(--(таблИгра[[#This Row],[Ч1]:[Ч6]]=TRANSPOSE(таблИгра[[#This Row],[Г1]:[Г6]]))) -> 0 | R11: =_xlfn.SWITCH(таблИгра[[#This Row],[Совпадения]],0,0,1,0,2,50,3,150,4,1500,5,100000,таблИгра[[#This Row],[Суперприз]])-50 -> -50 | S11: =SUM($R$4:таблИгра[[#This Row],[Результат]]) -> -300
A12: 2022-01-04T23:00:00 | B12: 6319 | C12: 10000000 | D12: 13-34-18-31-22-32 | E12: 13 | F12: 34 | G12: 18 | H12: 31 | I12: 22 | J12: 32 | K12: 12 | L12: 18 | M12: 26 | N12: 10 | O12: 21 | P12: 6 | Q12: =SUMPRODUCT(--(таблИгра[[#This Row],[Ч1]:[Ч6]]=TRANSPOSE(таблИгра[[#This Row],[Г1]:[Г6]]))) -> 1 | R12: =_xlfn.SWITCH(таблИгра[[#This Row],[Совпадения]],0,0,1,0,2,50,3,150,4,1500,5,100000,таблИгра[[#This Row],[Суперприз]])-50 -> -50 | S12: =SUM($R$4:таблИгра[[#This Row],[Результат]]) -> -350
A13: 2022-01-05T11:00:00 | B13: 6320 | C13: 10000000 | D13: 22-42-05-29-32-18 | E13: 22 | F13: 42 | G13: 5 | H13: 29 | I13: 32 | J13: 18 | K13: 12 | L13: 18 | M13: 26 | N13: 10 | O13: 21 | P13: 6 | Q13: =SUMPRODUCT(--(таблИгра[[#This Row],[Ч1]:[Ч6]]=TRANSPOSE(таблИгра[[#This Row],[Г1]:[Г6]]))) -> 1 | R13: =_xlfn.SWITCH(таблИгра[[#This Row],[Совпадения]],0,0,1,0,2,50,3,150,4,1500,5,100000,таблИгра[[#This Row],[Суперприз]])-50 -> -50 | S13: =SUM($R$4:таблИгра[[#This Row],[Результат]]) -> -400
A14: 2022-01-05T23:00:00 | B14: 6321 | C14: 10000000 | D14: 30-02-25-23-39-01 | E14: 30 | F14: 2 | G14: 25 | H14: 23 | I14: 39 | J14: 1 | K14: 12 | L14: 18 | M14: 26 | N14: 10 | O14: 21 | P14: 6 | Q14: =SUMPRODUCT(--(таблИгра[[#This Row],[Ч1]:[Ч6]]=TRANSPOSE(таблИгра[[#This Row],[Г1]:[Г6]]))) -> 0 | R14: =_xlfn.SWITCH(таблИгра[[#This Row],[Совпадения]],0,0,1,0,2,50,3,150,4,1500,5,100000,таблИгра[[#This Row],[Суперприз]])-50 -> -50 | S14: =SUM($R$4:таблИгра[[#This Row],[Результат]]) -> -450
A15: 2022-01-06T11:00:00 | B15: 6322 | C15: 10000000 | D15: 20-34-14-21-11-08 | E15: 20 | F15: 34 | G15: 14 | H15: 21 | I15: 11 | J15: 8 | K15: 12 | L15: 18 | M15: 26 | N15: 10 | O15: 21 | P15: 6 | Q15: =SUMPRODUCT(--(таблИгра[[#This Row],[Ч1]:[Ч6]]=TRANSPOSE(таблИгра[[#This Row],[Г1]:[Г6]]))) -> 1 | R15: =_xlfn.SWITCH(таблИгра[[#This Row],[Совпадения]],0,0,1,0,2,50,3,150,4,1500,5,100000,таблИгра[[#This Row],[Суперприз]])-50 -> -50 | S15: =SUM($R$4:таблИгра[[#This Row],[Результат]]) -> -500
A16: 2022-01-06T23:00:00 | B16: 6323 | C16: 10000000 | D16: 41-25-18-35-26-45 | E16: 41 | F16: 25 | G16: 18 | H16: 35 | I16: 26 | J16: 45 | K16: 12 | L16: 18 | M16: 26 | N16: 10 | O16: 21 | P16: 6 | Q16: =SUMPRODUCT(--(таблИгра[[#This Row],[Ч1]:[Ч6]]=TRANSPOSE(таблИгра[[#This Row],[Г1]:[Г6]]))) -> 2 | R16: =_xlfn.SWITCH(таблИгра[[#This Row],[Совпадения]],0,0,1,0,2,50,3,150,4,1500,5,100000,таблИгра[[#This Row],[Суперприз]])-50 -> 0 | S16: =SUM($R$4:таблИгра[[#This Row],[Результат]]) -> -500
A17: 2022-01-07T11:00:00 | B17: 6324 | C17: 10000000 | D17: 37-36-42-12-35-13 | E17: 37 | F17: 36 | G17: 42 | H17: 12 | I17: 35 | J17: 13 | K17: 12 | L17: 18 | M17: 26 | N17: 10 | O17: 21 | P17: 6 | Q17: =SUMPRODUCT(--(таблИгра[[#This Row],[Ч1]:[Ч6]]=TRANSPOSE(таблИгра[[#This Row],[Г1]:[Г6]]))) -> 1 | R17: =_xlfn.SWITCH(таблИгра[[#This Row],[Совпадения]],0,0,1,0,2,50,3,150,4,1500,5,100000,таблИгра[[#This Row],[Суперприз]])-50 -> -50 | S17: =SUM($R$4:таблИгра[[#This Row],[Результат]]) -> -550
A18: 2022-01-07T23:00:00 | B18: 6325 | C18: 10000000 | D18: 11-05-23-09-21-35 | E18: 11 | F18: 5 | G18: 23 | H18: 9 | I18: 21 | J18: 35 | K18: 12 | L18: 18 | M18: 26 | N18: 10 | O18: 21 | P18: 6 | Q18: =SUMPRODUCT(--(таблИгра[[#This Row],[Ч1]:[Ч6]]=TRANSPOSE(таблИгра[[#This Row],[Г1]:[Г6]]))) -> 1 | R18: =_xlfn.SWITCH(таблИгра[[#This Row],[Совпадения]],0,0,1,0,2,50,3,150,4,1500,5,100000,таблИгра[[#This Row],[Суперприз]])-50 -> -50 | S18: =SUM($R$4:таблИгра[[#This Row],[Результат]]) -> -600
A19: 2022-01-08T11:00:00 | B19: 6326 | C19: 10000000 | D19: 03-01-08-37-25-41 | E19: 3 | F19: 1 | G19: 8 | H19: 37 | I19: 25 | J19: 41 | K19: 12 | L19: 18 | M19: 26 | N19: 10 | O19: 21 | P19: 6 | Q19: =SUMPRODUCT(--(таблИгра[[#This Row],[Ч1]:[Ч6]]=TRANSPOSE(таблИгра[[#This Row],[Г1]:[Г6]]))) -> 0 | R19: =_xlfn.SWITCH(таблИгра[[#This Row],[Совпадения]],0,0,1,0,2,50,3,150,4,1500,5,100000,таблИгра[[#This Row],[Суперприз]])-50 -> -50 | S19: =SUM($R$4:таблИгра[[#This Row],[Результат]]) -> -650
A20: 2022-01-08T23:00:00 | B20: 6327 | C20: 10000000 | D20: 21-26-32-36-35-25 | E20: 21 | F20: 26 | G20: 32 | H20: 36 | I20: 35 | J20: 25 | K20: 12 | L20: 18 | M20: 26 | N20: 10 | O20: 21 | P20: 6 | Q20: =SUMPRODUCT(--(таблИгра[[#This Row],[Ч1]:[Ч6]]=TRANSPOSE(таблИгра[[#This Row],[Г1]:[Г6]]))) -> 2 | R20: =_xlfn.SWITCH(таблИгра[[#This Row],[Совпадения]],0,0,1,0,2,50,3,150,4,1500,5,100000,таблИгра[[#This Row],[Суперприз]])-50 -> 0 | S20: =SUM($R$4:таблИгра[[#This Row],[Результат]]) -> -650
A21: 2022-01-09T11:00:00 | B21: 6328 | C21: 10000000 | D21: 19-14-35-07-13-03 | E21: 19 | F21: 14 | G21: 35 | H21: 7 | I21: 13 | J21: 3 | K21: 12 | L21: 18 | M21: 26 | N21: 10 | O21: 21 | P21: 6 | Q21: =SUMPRODUCT(--(таблИгра[[#This Row],[Ч1]:[Ч6]]=TRANSPOSE(таблИгра[[#This Row],[Г1]:[Г6]]))) -> 0 | R21: =_xlfn.SWITCH(таблИгра[[#This Row],[Совпадения]],0,0,1,0,2,50,3,150,4,1500,5,100000,таблИгра[[#This Row],[Суперприз]])-50 -> -50 | S21: =SUM($R$4:таблИгра[[#This Row],[Результат]]) -> -700
A22: 2022-01-09T23:00:00 | B22: 6329 | C22: 10000000 | D22: 28-10-27-41-24-18 | E22: 28 | F22: 10 | G22: 27 | H22: 41 | I22: 24 | J22: 18 | K22: 12 | L22: 18 | M22: 26 | N22: 10 | O22: 21 | P22: 6 | Q22: =SUMPRODUCT(--(таблИгра[[#This Row],[Ч1]:[Ч6]]=TRANSPOSE(таблИгра[[#This Row],[Г1]:[Г6]]))) -> 2 | R22: =_xlfn.SWITCH(таблИгра[[#This Row],[Совпадения]],0,0,1,0,2,50,3,150,4,1500,5,100000,таблИгра[[#This Row],[Суперприз]])-50 -> 0 | S22: =SUM($R$4:таблИгра[[#This Row],[Результат]]) -> -700
A23: 2022-01-10T11:00:00 | B23: 6330 | C23: 10000000 | D23: 03-23-06-15-12-20 | E23: 3 | F23: 23 | G23: 6 | H23: 15 | I23: 12 | J23: 20 | K23: 12 | L23: 18 | M23: 26 | N23: 10 | O23: 21 | P23: 6 | Q23: =SUMPRODUCT(--(таблИгра[[#This Row],[Ч1]:[Ч6]]=TRANSPOSE(таблИгра[[#This Row],[Г1]:[Г6]]))) -> 2 | R23: =_xlfn.SWITCH(таблИгра[[#This Row],[Совпадения]],0,0,1,0,2,50,3,150,4,1500,5,100000,таблИгра[[#This Row],[Суперприз]])-50 -> 0 | S23: =SUM($R$4:таблИгра[[#This Row],[Результат]]) -> -700
A24: 2022-01-10T23:00:00 | B24: 6331 | C24: 10000000 | D24: 38-10-21-07-44-12 | E24: 38 | F24: 10 | G24: 21 | H24: 7 | I24: 44 | J24: 12 | K24: 12 | L24: 18 | M24: 26 | N24: 10 | O24: 21 | P24: 6 | Q24: =SUMPRODUCT(--(таблИгра[[#This Row],[Ч1]:[Ч6]]=TRANSPOSE(таблИгра[[#This Row],[Г1]:[Г6]]))) -> 3 | R24: =_xlfn.SWITCH(таблИгра[[#This Row],[Совпадения]],0,0,1,0,2,50,3,150,4,1500,5,100000,таблИгра[[#This Row],[Суперприз]])-50 -> 100 | S24: =SUM($R$4:таблИгра[[#This Row],[Результат]]) -> -600
A25: 2022-01-11T11:00:00 | B25: 6332 | C25: 10000000 | D25: 19-05-44-09-29-15 | E25: 19 | F25: 5 | G25: 44 | H25: 9 | I25: 29 | J25: 15 | K25: 12 | L25: 18 | M25: 26 | N25: 10 | O25: 21 | P25: 6 | Q25: =SUMPRODUCT(--(таблИгра[[#This Row],[Ч1]:[Ч6]]=TRANSPOSE(таблИгра[[#This Row],[Г1]:[Г6]]))) -> 0 | R25: =_xlfn.SWITCH(таблИгра[[#This Row],[Совпадения]],0,0,1,0,2,50,3,150,4,1500,5,100000,таблИгра[[#This Row],[Суперприз]])-50 -> -50 | S25: =SUM($R$4:таблИгра[[#This Row],[Результат]]) -> -650
A26: 2022-01-11T23:00:00 | B26: 6333 | C26: 10156050 | D26: 27-39-04-32-17-12 | E26: 27 | F26: 39 | G26: 4 | H26: 32 | I26: 17 | J26: 12 | K26: 12 | L26: 18 | M26: 26 | N26: 10 | O26: 21 | P26: 6 | Q26: =SUMPRODUCT(--(таблИгра[[#This Row],[Ч1]:[Ч6]]=TRANSPOSE(таблИгра[[#This Row],[Г1]:[Г6]]))) -> 1 | R26: =_xlfn.SWITCH(таблИгра[[#This Row],[Совпадения]],0,0,1,0,2,50,3,150,4,1500,5,100000,таблИгра[[#This Row],[Суперприз]])-50 -> -50 | S26: =SUM($R$4:таблИгра[[#This Row],[Результат]]) -> -700
A27: 2022-01-12T11:00:00 | B27: 6334 | C27: 10516525 | D27: 13-05-28-30-25-03 | E27: 13 | F27: 5 | G27: 28 | H27: 30 | I27: 25 | J27: 3 | K27: 12 | L27: 18 | M27: 26 | N27: 10 | O27: 21 | P27: 6 | Q27: =SUMPRODUCT(--(таблИгра[[#This Row],[Ч1]:[Ч6]]=TRANSPOSE(таблИгра[[#This Row],[Г1]:[Г6]]))) -> 0 | R27: =_xlfn.SWITCH(таблИгра[[#This Row],[Совпадения]],0,0,1,0,2,50,3,150,4,1500,5,100000,таблИгра[[#This Row],[Суперприз]])-50 -> -50 | S27: =SUM($R$4:таблИгра[[#This Row],[Результат]]) -> -750
A28: 2022-01-12T23:00:00 | B28: 6335 | C28: 10618900 | D28: 09-25-33-04-03-18 | E28: 9 | F28: 25 | G28: 33 | H28: 4 | I28: 3 | J28: 18 | K28: 12 | L28: 18 | M28: 26 | N28: 10 | O28: 21 | P28: 6 | Q28: =SUMPRODUCT(--(таблИгра[[#This Row],[Ч1]:[Ч6]]=TRANSPOSE(таблИгра[[#This Row],[Г1]:[Г6]]))) -> 1 | R28: =_xlfn.SWITCH(таблИгра[[#This Row],[Совпадения]],0,0,1,0,2,50,3,150,4,1500,5,100000,таблИгра[[#This Row],[Суперприз]])-50 -> -50 | S28: =SUM($R$4:таблИгра[[#This Row],[Результат]]) -> -800
A29: 2022-01-13T11:00:00 | B29: 6336 | C29: 10866975 | D29: 04-18-33-42-44-29 | E29: 4 | F29: 18 | G29: 33 | H29: 42 | I29: 44 | J29: 29 | K29: 12 | L29: 18 | M29: 26 | N29: 10 | O29: 21 | P29: 6 | Q29: =SUMPRODUCT(--(таблИгра[[#This Row],[Ч1]:[Ч6]]=TRANSPOSE(таблИгра[[#This Row],[Г1]:[Г6]]))) -> 1 | R29: =_xlfn.SWITCH(таблИгра[[#This Row],[Совпадения]],0,0,1,0,2,50,3,150,4,1500,5,100000,таблИгра[[#This Row],[Суперприз]])-50 -> -50 | S29: =SUM($R$4:таблИгра[[#This Row],[Результат]]) -> -850
A30: 2022-01-13T23:00:00 | B30: 6337 | C30: 11141200 | D30: 18-24-07-09-25-34 | E30: 18 | F30: 24 | G30: 7 | H30: 9 | I30: 25 | J30: 34 | K30: 12 | L30: 18 | M30: 26 | N30: 10 | O30: 21 | P30: 6 | Q30: =SUMPRODUCT(--(таблИгра[[#This Row],[Ч1]:[Ч6]]=TRANSPOSE(таблИгра[[#This Row],[Г1]:[Г6]]))) -> 1 | R30: =_xlfn.SWITCH(таблИгра[[#This Row],[Совпадения]],0,0,1,0,2,50,3,150,4,1500,5,100000,таблИгра[[#This Row],[Суперприз]])-50 -> -50 | S30: =SUM($R$4:таблИгра[[#This Row],[Результат]]) -> -900
A31: 2022-01-14T11:00:00 | B31: 6338 | C31: 11468700 | D31: 13-30-16-25-12-28 | E31: 13 | F31: 30 | G31: 16 | H31: 25 | I31: 12 | J31: 28 | K31: 12 | L31: 18 | M31: 26 | N31: 10 | O31: 21 | P31: 6 | Q31: =SUMPRODUCT(--(таблИгра[[#This Row],[Ч1]:[Ч6]]=TRANSPOSE(таблИгра[[#This Row],[Г1]:[Г6]]))) -> 1 | R31: =_xlfn.SWITCH(таблИгра[[#This Row],[Совпадения]],0,0,1,0,2,50,3,150,4,1500,5,100000,таблИгра[[#This Row],[Суперприз]])-50 -> -50 | S31: =SUM($R$4:таблИгра[[#This Row],[Результат]]) -> -950
A32: 2022-01-14T23:00:00 | B32: 6339 | C32: 11688375 | D32: 05-17-02-32-08-24 | E32: 5 | F32: 17 | G32: 2 | H32: 32 | I32: 8 | J32: 24 | K32: 12 | L32: 18 | M32: 26 | N32: 10 | O32: 21 | P32: 6 | Q32: =SUMPRODUCT(--(таблИгра[[#This Row],[Ч1]:[Ч6]]=TRANSPOSE(таблИгра[[#This Row],[Г1]:[Г6]]))) -> 0 | R32: =_xlfn.SWITCH(таблИгра[[#This Row],[Совпадения]],0,0,1,0,2,50,3,150,4,1500,5,100000,таблИгра[[#This Row],[Суперприз]])-50 -> -50 | S32: =SUM($R$4:таблИгра[[#This Row],[Результат]]) -> -1000
A33: 2022-01-15T11:00:00 | B33: 6340 | C33: 11925700 | D33: 38-35-20-42-09-14 | E33: 38 | F33: 35 | G33: 20 | H33: 42 | I33: 9 | J33: 14 | K33: 12 | L33: 18 | M33: 26 | N33: 10 | O33: 21 | P33: 6 | Q33: =SUMPRODUCT(--(таблИгра[[#This Row],[Ч1]:[Ч6]]=TRANSPOSE(таблИгра[[#This Row],[Г1]:[Г6]]))) -> 0 | R33: =_xlfn.SWITCH(таблИгра[[#This Row],[Совпадения]],0,0,1,0,2,50,3,150,4,1500,5,100000,таблИгра[[#This Row],[Суперприз]])-50 -> -50 | S33: =SUM($R$4:таблИгра[[#This Row],[Результат]]) -> -1050
A34: 2022-01-15T23:00:00 | B34: 6341 | C34: 12118050 | D34: 07-27-29-09-45-26 | E34: 7 | F34: 27 | G34: 29 | H34: 9 | I34: 45 | J34: 26 | K34: 12 | L34: 18 | M34: 26 | N34: 10 | O34: 21 | P34: 6 | Q34: =SUMPRODUCT(--(таблИгра[[#This Row],[Ч1]:[Ч6]]=TRANSPOSE(таблИгра[[#This Row],[Г1]:[Г6]]))) -> 1 | R34: =_xlfn.SWITCH(таблИгра[[#This Row],[Совпадения]],0,0,1,0,2,50,3,150,4,1500,5,100000,таблИгра[[#This Row],[Суперприз]])-50 -> -50 | S34: =SUM($R$4:таблИгра[[#This Row],[Результат]]) -> -1100
A35: 2022-01-16T11:00:00 | B35: 6342 | C35: 12300850 | D35: 31-32-03-44-08-28 | E35: 31 | F35: 32 | G35: 3 | H35: 44 | I35: 8 | J35: 28 | K35: 12 | L35: 18 | M35: 26 | N35: 10 | O35: 21 | P35: 6 | Q35: =SUMPRODUCT(--(таблИгра[[#This Row],[Ч1]:[Ч6]]=TRANSPOSE(таблИгра[[#This Row],[Г1]:[Г6]]))) -> 0 | R35: =_xlfn.SWITCH(таблИгра[[#This Row],[Совпадения]],0,0,1,0,2,50,3,150,4,1500,5,100000,таблИгра[[#This Row],[Суперприз]])-50 -> -50 | S35: =SUM($R$4:таблИгра[[#This Row],[Результат]]) -> -1150
A36: 2022-01-16T23:00:00 | B36: 6343 | C36: 12556025 | D36: 07-41-44-35-09-40 | E36: 7 | F36: 41 | G36: 44 | H36: 35 | I36: 9 | J36: 40 | K36: 12 | L36: 18 | M36: 26 | N36: 10 | O36: 21 | P36: 6 | Q36: =SUMPRODUCT(--(таблИгра[[#This Row],[Ч1]:[Ч6]]=TRANSPOSE(таблИгра[[#This Row],[Г1]:[Г6]]))) -> 0 | R36: =_xlfn.SWITCH(таблИгра[[#This Row],[Совпадения]],0,0,1,0,2,50,3,150,4,1500,5,100000,таблИгра[[#This Row],[Суперприз]])-50 -> -50 | S36: =SUM($R$4:таблИгра[[#This Row],[Результат]]) -> -1200
A37: 2022-01-17T11:00:00 | B37: 6344 | C37: 12909625 | D37: 06-04-41-14-09-23 | E37: 6 | F37: 4 | G37: 41 | H37: 14 | I37: 9 | J37: 23 | K37: 12 | L37: 18 | M37: 26 | N37: 10 | O37: 21 | P37: 6 | Q37: =SUMPRODUCT(--(таблИгра[[#This Row],[Ч1]:[Ч6]]=TRANSPOSE(таблИгра[[#This Row],[Г1]:[Г6]]))) -> 1 | R37: =_xlfn.SWITCH(таблИгра[[#This Row],[Совпадения]],0,0,1,0,2,50,3,150,4,1500,5,100000,таблИгра[[#This Row],[Суперприз]])-50 -> -50 | S37: =SUM($R$4:таблИгра[[#This Row],[Результат]]) -> -1250
A38: 2022-01-17T23:00:00 | B38: 6345 | C38: 13060775 | D38: 26-30-40-36-22-04 | E38: 26 | F38: 30 | G38: 40 | H38: 36 | I38: 22 | J38: 4 | K38: 12 | L38: 18 | M38: 26 | N38: 10 | O38: 21 | P38: 6 | Q38: =SUMPRODUCT(--(таблИгра[[#This Row],[Ч1]:[Ч6]]=TRANSPOSE(таблИгра[[#This Row],[Г1]:[Г6]]))) -> 1 | R38: =_xlfn.SWITCH(таблИгра[[#This Row],[Совпадения]],0,0,1,0,2,50,3,150,4,1500,5,100000,таблИгра[[#This Row],[Суперприз]])-50 -> -50 | S38: =SUM($R$4:таблИгра[[#This Row],[Результат]]) -> -1300
A39: 2022-01-18T11:00:00 | B39: 6346 | C39: 13464300 | D39: 16-30-09-23-07-34 | E39: 16 | F39: 30 | G39: 9 | H39: 23 | I39: 7 | J39: 34 | K39: 12 | L39: 18 | M39: 26 | N39: 10 | O39: 21 | P39: 6 | Q39: =SUMPRODUCT(--(таблИгра[[#This Row],[Ч1]:[Ч6]]=TRANSPOSE(таблИгра[[#This Row],[Г1]:[Г6]]))) -> 0 | R39: =_xlfn.SWITCH(таблИгра[[#This Row],[Совпадения]],0,0,1,0,2,50,3,150,4,1500,5,100000,таблИгра[[#This Row],[Суперприз]])-50 -> -50 | S39: =SUM($R$4:таблИгра[[#This Row],[Результат]]) -> -1350
A40: 2022-01-18T23:00:00 | B40: 6347 | C40: 13583200 | D40: 21-31-06-09-23-40 | E40: 21 | F40: 31 | G40: 6 | H40: 9 | I40: 23 | J40: 40 | K40: 12 | L40: 18 | M40: 26 | N40: 10 | O40: 21 | P40: 6 | Q40: =SUMPRODUCT(--(таблИгра[[#This Row],[Ч1]:[Ч6]]=TRANSPOSE(таблИгра[[#This Row],[Г1]:[Г6]]))) -> 2 | R40: =_xlfn.SWITCH(таблИгра[[#This Row],[Совпадения]],0,0,1,0,2,50,3,150,4,1500,5,100000,таблИгра[[#This Row],[Суперприз]])-50 -> 0 | S40: =SUM($R$4:таблИгра[[#This Row],[Результат]]) -> -1350
A41: 2022-01-19T11:00:00 | B41: 6348 | C41: 13963400 | D41: 29-05-09-20-01-32 | E41: 29 | F41: 5 | G41: 9 | H41: 20 | I41: 1 | J41: 32 | K41: 12 | L41: 18 | M41: 26 | N41: 10 | O41: 21 | P41: 6 | Q41: =SUMPRODUCT(--(таблИгра[[#This Row],[Ч1]:[Ч6]]=TRANSPOSE(таблИгра[[#This Row],[Г1]:[Г6]]))) -> 0 | R41: =_xlfn.SWITCH(таблИгра[[#This Row],[Совпадения]],0,0,1,0,2,50,3,150,4,1500,5,100000,таблИгра[[#This Row],[Суперприз]])-50 -> -50 | S41: =SUM($R$4:таблИгра[[#This Row],[Результат]]) -> -1400
A42: 2022-01-19T23:00:00 | B42: 6349 | C42: 14131625 | D42: 40-18-38-41-22-20 | E42: 40 | F42: 18 | G42: 38 | H42: 41 | I42: 22 | J42: 20 | K42: 12 | L42: 18 | M42: 26 | N42: 10 | O42: 21 | P42: 6 | Q42: =SUMPRODUCT(--(таблИгра[[#This Row],[Ч1]:[Ч6]]=TRANSPOSE(таблИгра[[#This Row],[Г1]:[Г6]]))) -> 1 | R42: =_xlfn.SWITCH(таблИгра[[#This Row],[Совпадения]],0,0,1,0,2,50,3,150,4,1500,5,100000,таблИгра[[#This Row],[Суперприз]])-50 -> -50 | S42: =SUM($R$4:таблИгра[[#This Row],[Результат]]) -> -1450
A43: 2022-01-20T11:00:00 | B43: 6350 | C43: 14574100 | D43: 08-24-43-14-37-28 | E43: 8 | F43: 24 | G43: 43 | H43: 14 | I43: 37 | J43: 28 | K43: 12 | L43: 18 | M43: 26 | N43: 10 | O43: 21 | P43: 6 | Q43: =SUMPRODUCT(--(таблИгра[[#This Row],[Ч1]:[Ч6]]=TRANSPOSE(таблИгра[[#This Row],[Г1]:[Г6]]))) -> 0 | R43: =_xlfn.SWITCH(таблИгра[[#This Row],[Совпадения]],0,0,1,0,2,50,3,150,4,1500,5,100000,таблИгра[[#This Row],[Суперприз]])-50 -> -50 | S43: =SUM($R$4:таблИгра[[#This Row],[Результат]]) -> -1500
A44: 2022-01-20T23:00:00 | B44: 6351 | C44: 14531175 | D44: 08-30-39-35-07-26 | E44: 8 | F44: 30 | G44: 39 | H44: 35 | I44: 7 | J44: 26 | K44: 12 | L44: 18 | M44: 26 | N44: 10 | O44: 21 | P44: 6 | Q44: =SUMPRODUCT(--(таблИгра[[#This Row],[Ч1]:[Ч6]]=TRANSPOSE(таблИгра[[#This Row],[Г1]:[Г6]]))) -> 1 | R44: =_xlfn.SWITCH(таблИгра[[#This Row],[Совпадения]],0,0,1,0,2,50,3,150,4,1500,5,100000,таблИгра[[#This Row],[Суперприз]])-50 -> -50 | S44: =SUM($R$4:таблИгра[[#This Row],[Результат]]) -> -1550
A45: 2022-01-21T11:00:00 | B45: 6352 | C45: 14983050 | D45: 22-34-37-01-25-41 | E45: 22 | F45: 34 | G45: 37 | H45: 1 | I45: 25 | J45: 41 | K45: 12 | L45: 18 | M45: 26 | N45: 10 | O45: 21 | P45: 6 | Q45: =SUMPRODUCT(--(таблИгра[[#This Row],[Ч1]:[Ч6]]=TRANSPOSE(таблИгра[[#This Row],[Г1]:[Г6]]))) -> 0 | R45: =_xlfn.SWITCH(таблИгра[[#This Row],[Совпадения]],0,0,1,0,2,50,3,150,4,1500,5,100000,таблИгра[[#This Row],[Суперприз]])-50 -> -50 | S45: =SUM($R$4:таблИгра[[#This Row],[Результат]]) -> -1600
A46: 2022-01-21T23:00:00 | B46: 6353 | C46: 15295475 | D46: 25-43-44-20-16-04 | E46: 25 | F46: 43 | G46: 44 | H46: 20 | I46: 16 | J46: 4 | K46: 12 | L46: 18 | M46: 26 | N46: 10 | O46: 21 | P46: 6 | Q46: =SUMPRODUCT(--(таблИгра[[#This Row],[Ч1]:[Ч6]]=TRANSPOSE(таблИгра[[#This Row],[Г1]:[Г6]]))) -> 0 | R46: =_xlfn.SWITCH(таблИгра[[#This Row],[Совпадения]],0,0,1,0,2,50,3,150,4,1500,5,100000,таблИгра[[#This Row],[Суперприз]])-50 -> -50 | S46: =SUM($R$4:таблИгра[[#This Row],[Результат]]) -> -1650
A47: 2022-01-22T11:00:00 | B47: 6354 | C47: 15894200 | D47: 11-05-13-37-01-20 | E47: 11 | F47: 5 | G47: 13 | H47: 37 | I47: 1 | J47: 20 | K47: 12 | L47: 18 | M47: 26 | N47: 10 | O47: 21 | P47: 6 | Q47: =SUMPRODUCT(--(таблИгра[[#This Row],[Ч1]:[Ч6]]=TRANSPOSE(таблИгра[[#This Row],[Г1]:[Г6]]))) -> 0 | R47: =_xlfn.SWITCH(таблИгра[[#This Row],[Совпадения]],0,0,1,0,2,50,3,150,4,1500,5,100000,таблИгра[[#This Row],[Суперприз]])-50 -> -50 | S47: =SUM($R$4:таблИгра[[#This Row],[Результат]]) -> -1700
A48: 2022-01-22T23:00:00 | B48: 6355 | C48: 15984900 | D48: 44-24-17-03-45-26 | E48: 44 | F48: 24 | G48: 17 | H48: 3 | I48: 45 | J48: 26 | K48: 12 | L48: 18 | M48: 26 | N48: 10 | O48: 21 | P48: 6 | Q48: =SUMPRODUCT(--(таблИгра[[#This Row],[Ч1]:[Ч6]]=TRANSPOSE(таблИгра[[#This Row],[Г1]:[Г6]]))) -> 1 | R48: =_xlfn.SWITCH(таблИгра[[#This Row],[Совпадения]],0,0,1,0,2,50,3,150,4,1500,5,100000,таблИгра[[#This Row],[Суперприз]])-50 -> -50 | S48: =SUM($R$4:таблИгра[[#This Row],[Результат]]) -> -1750
A49: 2022-01-23T11:00:00 | B49: 6356 | C49: 16286250 | D49: 44-38-36-11-20-07 | E49: 44 | F49: 38 | G49: 36 | H49: 11 | I49: 20 | J49: 7 | K49: 12 | L49: 18 | M49: 26 | N49: 10 | O49: 21 | P49: 6 | Q49: =SUMPRODUCT(--(таблИгра[[#This Row],[Ч1]:[Ч6]]=TRANSPOSE(таблИгра[[#This Row],[Г1]:[Г6]]))) -> 0 | R49: =_xlfn.SWITCH(таблИгра[[#This Row],[Совпадения]],0,0,1,0,2,50,3,150,4,1500,5,100000,таблИгра[[#This Row],[Суперприз]])-50 -> -50 | S49: =SUM($R$4:таблИгра[[#This Row],[Результат]]) -> -1800
A50: 2022-01-23T23:00:00 | B50: 6357 | C50: 16457550 | D50: 31-34-26-33-29-36 | E50: 31 | F50: 34 | G50: 26 | H50: 33 | I50: 29 | J50: 36 | K50: 12 | L50: 18 | M50: 26 | N50: 10 | O50: 21 | P50: 6 | Q50: =SUMPRODUCT(--(таблИгра[[#This Row],[Ч1]:[Ч6]]=TRANSPOSE(таблИгра[[#This Row],[Г1]:[Г6]]))) -> 1 | R50: =_xlfn.SWITCH(таблИгра[[#This Row],[Совпадения]],0,0,1,0,2,50,3,150,4,1500,5,100000,таблИгра[[#This Row],[Суперприз]])-50 -> -50 | S50: =SUM($R$4:таблИгра[[#This Row],[Результат]]) -> -1850
A51: 2022-01-24T11:00:00 | B51: 6358 | C51: 16963425 | D51: 05-34-39-38-18-35 | E51: 5 | F51: 34 | G51: 39 | H51: 38 | I51: 18 | J51: 35 | K51: 12 | L51: 18 | M51: 26 | N51: 10 | O51: 21 | P51: 6 | Q51: =SUMPRODUCT(--(таблИгра[[#This Row],[Ч1]:[Ч6]]=TRANSPOSE(таблИгра[[#This Row],[Г1]:[Г6]]))) -> 1 | R51: =_xlfn.SWITCH(таблИгра[[#This Row],[Совпадения]],0,0,1,0,2,50,3,150,4,1500,5,100000,таблИгра[[#This Row],[Суперприз]])-50 -> -50 | S51: =SUM($R$4:таблИгра[[#This Row],[Результат]]) -> -1900
A52: 2022-01-24T23:00:00 | B52: 6359 | C52: 17270950 | D52: 17-05-29-16-26-07 | E52: 17 | F52: 5 | G52: 29 | H52: 16 | I52: 26 | J52: 7 | K52: 12 | L52: 18 | M52: 26 | N52: 10 | O52: 21 | P52: 6 | Q52: =SUMPRODUCT(--(таблИгра[[#This Row],[Ч1]:[Ч6]]=TRANSPOSE(таблИгра[[#This Row],[Г1]:[Г6]]))) -> 1 | R52: =_xlfn.SWITCH(таблИгра[[#This Row],[Совпадения]],0,0,1,0,2,50,3,150,4,1500,5,100000,таблИгра[[#This Row],[Суперприз]])-50 -> -50 | S52: =SUM($R$4:таблИгра[[#This Row],[Результат]]) -> -1950
A53: 2022-01-25T11:00:00 | B53: 6360 | C53: 17714850 | D53: 35-03-01-13-04-44 | E53: 35 | F53: 3 | G53: 1 | H53: 13 | I53: 4 | J53: 44 | K53: 12 | L53: 18 | M53: 26 | N53: 10 | O53: 21 | P53: 6 | Q53: =SUMPRODUCT(--(таблИгра[[#This Row],[Ч1]:[Ч6]]=TRANSPOSE(таблИгра[[#This Row],[Г1]:[Г6]]))) -> 0 | R53: =_xlfn.SWITCH(таблИгра[[#This Row],[Совпадения]],0,0,1,0,2,50,3,150,4,1500,5,100000,таблИгра[[#This Row],[Суперприз]])-50 -> -50 | S53: =SUM($R$4:таблИгра[[#This Row],[Результат]]) -> -2000
A54: 2022-01-25T23:00:00 | B54: 6361 | C54: 18019375 | D54: 12-40-02-10-16-44 | E54: 12 | F54: 40 | G54: 2 | H54: 10 | I54: 16 | J54: 44 | K54: 12 | L54: 18 | M54: 26 | N54: 10 | O54: 21 | P54: 6 | Q54: =SUMPRODUCT(--(таблИгра[[#This Row],[Ч1]:[Ч6]]=TRANSPOSE(таблИгра[[#This Row],[Г1]:[Г6]]))) -> 2 | R54: =_xlfn.SWITCH(таблИгра[[#This Row],[Совпадения]],0,0,1,0,2,50,3,150,4,1500,5,100000,таблИгра[[#This Row],[Суперприз]])-50 -> 0 | S54: =SUM($R$4:таблИгра[[#This Row],[Результат]]) -> -2000
A55: 2022-01-26T11:00:00 | B55: 6362 | C55: 18171350 | D55: 19-16-31-17-26-04 | E55: 19 | F55: 16 | G55: 31 | H55: 17 | I55: 26 | J55: 4 | K55: 12 | L55: 18 | M55: 26 | N55: 10 | O55: 21 | P55: 6 | Q55: =SUMPRODUCT(--(таблИгра[[#This Row],[Ч1]:[Ч6]]=TRANSPOSE(таблИгра[[#This Row],[Г1]:[Г6]]))) -> 1 | R55: =_xlfn.SWITCH(таблИгра[[#This Row],[Совпадения]],0,0,1,0,2,50,3,150,4,1500,5,100000,таблИгра[[#This Row],[Суперприз]])-50 -> -50 | S55: =SUM($R$4:таблИгра[[#This Row],[Результат]]) -> -2050
A56: 2022-01-26T23:00:00 | B56: 6363 | C56: 18340500 | D56: 11-23-36-21-28-22 | E56: 11 | F56: 23 | G56: 36 | H56: 21 | I56: 28 | J56: 22 | K56: 12 | L56: 18 | M56: 26 | N56: 10 | O56: 21 | P56: 6 | Q56: =SUMPRODUCT(--(таблИгра[[#This Row],[Ч1]:[Ч6]]=TRANSPOSE(таблИгра[[#This Row],[Г1]:[Г6]]))) -> 1 | R56: =_xlfn.SWITCH(таблИгра[[#This Row],[Совпадения]],0,0,1,0,2,50,3,150,4,1500,5,100000,таблИгра[[#This Row],[Суперприз]])-50 -> -50 | S56: =SUM($R$4:таблИгра[[#This Row],[Результат]]) -> -2100
A57: 2022-01-27T11:00:00 | B57: 6364 | C57: 18474525 | D57: 21-05-36-34-02-33 | E57: 21 | F57: 5 | G57: 36 | H57: 34 | I57: 2 | J57: 33 | K57: 12 | L57: 18 | M57: 26 | N57: 10 | O57: 21 | P57: 6 | Q57: =SUMPRODUCT(--(таблИгра[[#This Row],[Ч1]:[Ч6]]=TRANSPOSE(таблИгра[[#This Row],[Г1]:[Г6]]))) -> 1 | R57: =_xlfn.SWITCH(таблИгра[[#This Row],[Совпадения]],0,0,1,0,2,50,3,150,4,1500,5,100000,таблИгра[[#This Row],[Суперприз]])-50 -> -50 | S57: =SUM($R$4:таблИгра[[#This Row],[Результат]]) -> -2150
A58: 2022-01-27T23:00:00 | B58: 6365 | C58: 18801775 | D58: 21-32-01-28-17-40 | E58: 21 | F58: 32 | G58: 1 | H58: 28 | I58: 17 | J58: 40 | K58: 12 | L58: 18 | M58: 26 | N58: 10 | O58: 21 | P58: 6 | Q58: =SUMPRODUCT(--(таблИгра[[#This Row],[Ч1]:[Ч6]]=TRANSPOSE(таблИгра[[#This Row],[Г1]:[Г6]]))) -> 1 | R58: =_xlfn.SWITCH(таблИгра[[#This Row],[Совпадения]],0,0,1,0,2,50,3,150,4,1500,5,100000,таблИгра[[#This Row],[Суперприз]])-50 -> -50 | S58: =SUM($R$4:таблИгра[[#This Row],[Результат]]) -> -2200
A59: 2022-01-28T11:00:00 | B59: 6366 | C59: 19140675 | D59: 45-38-30-02-37-09 | E59: 45 | F59: 38 | G59: 30 | H59: 2 | I59: 37 | J59: 9 | K59: 12 | L59: 18 | M59: 26 | N59: 10 | O59: 21 | P59: 6 | Q59: =SUMPRODUCT(--(таблИгра[[#This Row],[Ч1]:[Ч6]]=TRANSPOSE(таблИгра[[#This Row],[Г1]:[Г6]]))) -> 0 | R59: =_xlfn.SWITCH(таблИгра[[#This Row],[Совпадения]],0,0,1,0,2,50,3,150,4,1500,5,100000,таблИгра[[#This Row],[Суперприз]])-50 -> -50 | S59: =SUM($R$4:таблИгра[[#This Row],[Результат]]) -> -2250
A60: 2022-01-28T23:00:00 | B60: 6367 | C60: 19512125 | D60: 39-31-29-19-32-33 | E60: 39 | F60: 31 | G60: 29 | H60: 19 | I60: 32 | J60: 33 | K60: 12 | L60: 18 | M60: 26 | N60: 10 | O60: 21 | P60: 6 | Q60: =SUMPRODUCT(--(таблИгра[[#This Row],[Ч1]:[Ч6]]=TRANSPOSE(таблИгра[[#This Row],[Г1]:[Г6]]))) -> 0 | R60: =_xlfn.SWITCH(таблИгра[[#This Row],[Совпадения]],0,0,1,0,2,50,3,150,4,1500,5,100000,таблИгра[[#This Row],[Суперприз]])-50 -> -50 | S60: =SUM($R$4:таблИгра[[#This Row],[Результат]]) -> -2300
A61: 2022-01-29T11:00:00 | B61: 6368 | C61: 20027950 | D61: 28-09-19-36-07-41 | E61: 28 | F61: 9 | G61: 19 | H61: 36 | I61: 7 | J61: 41 | K61: 12 | L61: 18 | M61: 26 | N61: 10 | O61: 21 | P61: 6 | Q61: =SUMPRODUCT(--(таблИгра[[#This Row],[Ч1]:[Ч6]]=TRANSPOSE(таблИгра[[#This Row],[Г1]:[Г6]]))) -> 0 | R61: =_xlfn.SWITCH(таблИгра[[#This Row],[Совпадения]],0,0,1,0,2,50,3,150,4,1500,5,100000,таблИгра[[#This Row],[Суперприз]])-50 -> -50 | S61: =SUM($R$4:таблИгра[[#This Row],[Результат]]) -> -2350
A62: 2022-01-29T23:00:00 | B62: 6369 | C62: 20184025 | D62: 12-36-42-33-08-07 | E62: 12 | F62: 36 | G62: 42 | H62: 33 | I62: 8 | J62: 7 | K62: 12 | L62: 18 | M62: 26 | N62: 10 | O62: 21 | P62: 6 | Q62: =SUMPRODUCT(--(таблИгра[[#This Row],[Ч1]:[Ч6]]=TRANSPOSE(таблИгра[[#This Row],[Г1]:[Г6]]))) -> 1 | R62: =_xlfn.SWITCH(таблИгра[[#This Row],[Совпадения]],0,0,1,0,2,50,3,150,4,1500,5,100000,таблИгра[[#This Row],[Суперприз]])-50 -> -50 | S62: =SUM($R$4:таблИгра[[#This Row],[Результат]]) -> -2400
A63: 2022-01-30T11:00:00 | B63: 6370 | C63: 20135175 | D63: 15-16-10-43-39-02 | E63: 15 | F63: 16 | G63: 10 | H63: 43 | I63: 39 | J63: 2 | K63: 12 | L63: 18 | M63: 26 | N63: 10 | O63: 21 | P63: 6 | Q63: =SUMPRODUCT(--(таблИгра[[#This Row],[Ч1]:[Ч6]]=TRANSPOSE(таблИгра[[#This Row],[Г1]:[Г6]]))) -> 1 | R63: =_xlfn.SWITCH(таблИгра[[#This Row],[Совпадения]],0,0,1,0,2,50,3,150,4,1500,5,100000,таблИгра[[#This Row],[Суперприз]])-50 -> -50 | S63: =SUM($R$4:таблИгра[[#This Row],[Результат]]) -> -2450
A64: 2022-01-30T23:00:00 | B64: 6371 | C64: 20464150 | D64: 09-16-26-38-37-40 | E64: 9 | F64: 16 | G64: 26 | H64: 38 | I64: 37 | J64: 40 | K64: 12 | L64: 18 | M64: 26 | N64: 10 | O64: 21 | P64: 6 | Q64: =SUMPRODUCT(--(таблИгра[[#This Row],[Ч1]:[Ч6]]=TRANSPOSE(таблИгра[[#This Row],[Г1]:[Г6]]))) -> 1 | R64: =_xlfn.SWITCH(таблИгра[[#This Row],[Совпадения]],0,0,1,0,2,50,3,150,4,1500,5,100000,таблИгра[[#This Row],[Суперприз]])-50 -> -50 | S64: =SUM($R$4:таблИгра[[#This Row],[Результат]]) -> -2500
A65: 2022-01-31T11:00:00 | B65: 6372 | C65: 20550350 | D65: 32-15-39-26-34-45 | E65: 32 | F65: 15 | G65: 39 | H65: 26 | I65: 34 | J65: 45 | K65: 12 | L65: 18 | M65: 26 | N65: 10 | O65: 21 | P65: 6 | Q65: =SUMPRODUCT(--(таблИгра[[#This Row],[Ч1]:[Ч6]]=TRANSPOSE(таблИгра[[#This Row],[Г1]:[Г6]]))) -> 1 | R65: =_xlfn.SWITCH(таблИгра[[#This Row],[Совпадения]],0,0,1,0,2,50,3,150,4,1500,5,100000,таблИгра[[#This Row],[Суперприз]])-50 -> -50 | S65: =SUM($R$4:таблИгра[[#This Row],[Результат]]) -> -2550
A66: 2022-01-31T23:00:00 | B66: 6373 | C66: 20820050 | D66: 10-05-37-35-18-11 | E66: 10 | F66: 5 | G66: 37 | H66: 35 | I66: 18 | J66: 11 | K66: 12 | L66: 18 | M66: 26 | N66: 10 | O66: 21 | P66: 6 | Q66: =SUMPRODUCT(--(таблИгра[[#This Row],[Ч1]:[Ч6]]=TRANSPOSE(таблИгра[[#This Row],[Г1]:[Г6]]))) -> 2 | R66: =_xlfn.SWITCH(таблИгра[[#This Row],[Совпадения]],0,0,1,0,2,50,3,150,4,1500,5,100000,таблИгра[[#This Row],[Суперприз]])-50 -> 0 | S66: =SUM($R$4:таблИгра[[#This Row],[Результат]]) -> -2550
A67: 2022-02-01T11:00:00 | B67: 6374 | C67: 18980325 | D67: 07-38-33-13-28-40 | E67: 7 | F67: 38 | G67: 33 | H67: 13 | I67: 28 | J67: 40 | K67: 12 | L67: 18 | M67: 26 | N67: 10 | O67: 21 | P67: 6 | Q67: =SUMPRODUCT(--(таблИгра[[#This Row],[Ч1]:[Ч6]]=TRANSPOSE(таблИгра[[#This Row],[Г1]:[Г6]]))) -> 0 | R67: =_xlfn.SWITCH(таблИгра[[#This Row],[Совпадения]],0,0,1,0,2,50,3,150,4,1500,5,100000,таблИгра[[#This Row],[Суперприз]])-50 -> -50 | S67: =SUM($R$4:таблИгра[[#This Row],[Результат]]) -> -2600
A68: 2022-02-01T23:00:00 | B68: 6375 | C68: 10000000 | D68: 37-04-35-05-41-21 | E68: 37 | F68: 4 | G68: 35 | H68: 5 | I68: 41 | J68: 21 | K68: 12 | L68: 18 | M68: 26 | N68: 10 | O68: 21 | P68: 6 | Q68: =SUMPRODUCT(--(таблИгра[[#This Row],[Ч1]:[Ч6]]=TRANSPOSE(таблИгра[[#This Row],[Г1]:[Г6]]))) -> 1 | R68: =_xlfn.SWITCH(таблИгра[[#This Row],[Совпадения]],0,0,1,0,2,50,3,150,4,1500,5,100000,таблИгра[[#This Row],[Суперприз]])-50 -> -50 | S68: =SUM($R$4:таблИгра[[#This Row],[Результат]]) -> -2650
A69: 2022-02-02T11:00:00 | B69: 6376 | C69: 10000000 | D69: 36-15-14-21-29-16 | E69: 36 | F69: 15 | G69: 14 | H69: 21 | I69: 29 | J69: 16 | K69: 12 | L69: 18 | M69: 26 | N69: 10 | O69: 21 | P69: 6 | Q69: =SUMPRODUCT(--(таблИгра[[#This Row],[Ч1]:[Ч6]]=TRANSPOSE(таблИгра[[#This Row],[Г1]:[Г6]]))) -> 1 | R69: =_xlfn.SWITCH(таблИгра[[#This Row],[Совпадения]],0,0,1,0,2,50,3,150,4,1500,5,100000,таблИгра[[#This Row],[Суперприз]])-50 -> -50 | S69: =SUM($R$4:таблИгра[[#This Row],[Результат]]) -> -2700
A70: 2022-02-02T23:00:00 | B70: 6377 | C70: 10000000 | D70: 13-26-19-31-08-11 | E70: 13 | F70: 26 | G70: 19 | H70: 31 | I70: 8 | J70: 11 | K70: 12 | L70: 18 | M70: 26 | N70: 10 | O70: 21 | P70: 6 | Q70: =SUMPRODUCT(--(таблИгра[[#This Row],[Ч1]:[Ч6]]=TRANSPOSE(таблИгра[[#This Row],[Г1]:[Г6]]))) -> 1 | R70: =_xlfn.SWITCH(таблИгра[[#This Row],[Совпадения]],0,0,1,0,2,50,3,150,4,1500,5,100000,таблИгра[[#This Row],[Суперприз]])-50 -> -50 | S70: =SUM($R$4:таблИгра[[#This Row],[Результат]]) -> -2750
A71: 2022-02-03T11:00:00 | B71: 6378 | C71: 10000000 | D71: 07-08-06-24-13-18 | E71: 7 | F71: 8 | G71: 6 | H71: 24 | I71: 13 | J71: 18 | K71: 12 | L71: 18 | M71: 26 | N71: 10 | O71: 21 | P71: 6 | Q71: =SUMPRODUCT(--(таблИгра[[#This Row],[Ч1]:[Ч6]]=TRANSPOSE(таблИгра[[#This Row],[Г1]:[Г6]]))) -> 2 | R71: =_xlfn.SWITCH(таблИгра[[#This Row],[Совпадения]],0,0,1,0,2,50,3,150,4,1500,5,100000,таблИгра[[#This Row],[Суперприз]])-50 -> 0 | S71: =SUM($R$4:таблИгра[[#This Row],[Результат]]) -> -2750
A72: 2022-02-03T23:00:00 | B72: 6379 | C72: 10000000 | D72: 27-08-14-25-39-40 | E72: 27 | F72: 8 | G72: 14 | H72: 25 | I72: 39 | J72: 40 | K72: 12 | L72: 18 | M72: 26 | N72: 10 | O72: 21 | P72: 6 | Q72: =SUMPRODUCT(--(таблИгра[[#This Row],[Ч1]:[Ч6]]=TRANSPOSE(таблИгра[[#This Row],[Г1]:[Г6]]))) -> 0 | R72: =_xlfn.SWITCH(таблИгра[[#This Row],[Совпадения]],0,0,1,0,2,50,3,150,4,1500,5,100000,таблИгра[[#This Row],[Суперприз]])-50 -> -50 | S72: =SUM($R$4:таблИгра[[#This Row],[Результат]]) -> -2800
A73: 2022-02-04T11:00:00 | B73: 6380 | C73: 10000000 | D73: 35-41-02-32-29-13 | E73: 35 | F73: 41 | G73: 2 | H73: 32 | I73: 29 | J73: 13 | K73: 12 | L73: 18 | M73: 26 | N73: 10 | O73: 21 | P73: 6 | Q73: =SUMPRODUCT(--(таблИгра[[#This Row],[Ч1]:[Ч6]]=TRANSPOSE(таблИгра[[#This Row],[Г1]:[Г6]]))) -> 0 | R73: =_xlfn.SWITCH(таблИгра[[#This Row],[Совпадения]],0,0,1,0,2,50,3,150,4,1500,5,100000,таблИгра[[#This Row],[Суперприз]])-50 -> -50 | S73: =SUM($R$4:таблИгра[[#This Row],[Результат]]) -> -2850
A74: 2022-02-04T23:00:00 | B74: 6381 | C74: 10000000 | D74: 36-39-29-40-31-44 | E74: 36 | F74: 39 | G74: 29 | H74: 40 | I74: 31 | J74: 44 | K74: 12 | L74: 18 | M74: 26 | N74: 10 | O74: 21 | P74: 6 | Q74: =SUMPRODUCT(--(таблИгра[[#This Row],[Ч1]:[Ч6]]=TRANSPOSE(таблИгра[[#This Row],[Г1]:[Г6]]))) -> 0 | R74: =_xlfn.SWITCH(таблИгра[[#This Row],[Совпадения]],0,0,1,0,2,50,3,150,4,1500,5,100000,таблИгра[[#This Row],[Суперприз]])-50 -> -50 | S74: =SUM($R$4:таблИгра[[#This Row],[Результат]]) -> -2900
A75: 2022-02-05T11:00:00 | B75: 6382 | C75: 10000000 | D75: 24-26-35-41-06-39 | E75: 24 | F75: 26 | G75: 35 | H75: 41 | I75: 6 | J75: 39 | K75: 12 | L75: 18 | M75: 26 | N75: 10 | O75: 21 | P75: 6 | Q75: =SUMPRODUCT(--(таблИгра[[#This Row],[Ч1]:[Ч6]]=TRANSPOSE(таблИгра[[#This Row],[Г1]:[Г6]]))) -> 2 | R75: =_xlfn.SWITCH(таблИгра[[#This Row],[Совпадения]],0,0,1,0,2,50,3,150,4,1500,5,100000,таблИгра[[#This Row],[Суперприз]])-50 -> 0 | S75: =SUM($R$4:таблИгра[[#This Row],[Результат]]) -> -2900
A76: 2022-02-05T23:00:00 | B76: 6383 | C76: 10000000 | D76: 09-31-18-01-13-30 | E76: 9 | F76: 31 | G76: 18 | H76: 1 | I76: 13 | J76: 30 | K76: 12 | L76: 18 | M76: 26 | N76: 10 | O76: 21 | P76: 6 | Q76: =SUMPRODUCT(--(таблИгра[[#This Row],[Ч1]:[Ч6]]=TRANSPOSE(таблИгра[[#This Row],[Г1]:[Г6]]))) -> 1 | R76: =_xlfn.SWITCH(таблИгра[[#This Row],[Совпадения]],0,0,1,0,2,50,3,150,4,1500,5,100000,таблИгра[[#This Row],[Суперприз]])-50 -> -50 | S76: =SUM($R$4:таблИгра[[#This Row],[Результат]]) -> -2950
A77: 2022-02-06T11:00:00 | B77: 6384 | C77: 10000000 | D77: 13-14-45-04-29-15 | E77: 13 | F77: 14 | G77: 45 | H77: 4 | I77: 29 | J77: 15 | K77: 12 | L77: 18 | M77: 26 | N77: 10 | O77: 21 | P77: 6 | Q77: =SUMPRODUCT(--(таблИгра[[#This Row],[Ч1]:[Ч6]]=TRANSPOSE(таблИгра[[#This Row],[Г1]:[Г6]]))) -> 0 | R77: =_xlfn.SWITCH(таблИгра[[#This Row],[Совпадения]],0,0,1,0,2,50,3,150,4,1500,5,100000,таблИгра[[#This Row],[Суперприз]])-50 -> -50 | S77: =SUM($R$4:таблИгра[[#This Row],[Результат]]) -> -3000
A78: 2022-02-06T23:00:00 | B78: 6385 | C78: 10000000 | D78: 29-38-15-04-28-39 | E78: 29 | F78: 38 | G78: 15 | H78: 4 | I78: 28 | J78: 39 | K78: 12 | L78: 18 | M78: 26 | N78: 10 | O78: 21 | P78: 6 | Q78: =SUMPRODUCT(--(таблИгра[[#This Row],[Ч1]:[Ч6]]=TRANSPOSE(таблИгра[[#This Row],[Г1]:[Г6]]))) -> 0 | R78: =_xlfn.SWITCH(таблИгра[[#This Row],[Совпадения]],0,0,1,0,2,50,3,150,4,1500,5,100000,таблИгра[[#This Row],[Суперприз]])-50 -> -50 | S78: =SUM($R$4:таблИгра[[#This Row],[Результат]]) -> -3050
A79: 2022-02-07T11:00:00 | B79: 6386 | C79: 10000000 | D79: 01-24-17-08-36-13 | E79: 1 | F79: 24 | G79: 17 | H79: 8 | I79: 36 | J79: 13 | K79: 12 | L79: 18 | M79: 26 | N79: 10 | O79: 21 | P79: 6 | Q79: =SUMPRODUCT(--(таблИгра[[#This Row],[Ч1]:[Ч6]]=TRANSPOSE(таблИгра[[#This Row],[Г1]:[Г6]]))) -> 0 | R79: =_xlfn.SWITCH(таблИгра[[#This Row],[Совпадения]],0,0,1,0,2,50,3,150,4,1500,5,100000,таблИгра[[#This Row],[Суперприз]])-50 -> -50 | S79: =SUM($R$4:таблИгра[[#This Row],[Результат]]) -> -3100
A80: 2022-02-07T23:00:00 | B80: 6387 | C80: 10000000 | D80: 11-05-08-26-17-07 | E80: 11 | F80: 5 | G80: 8 | H80: 26 | I80: 17 | J80: 7 | K80: 12 | L80: 18 | M80: 26 | N80: 10 | O80: 21 | P80: 6 | Q80: =SUMPRODUCT(--(таблИгра[[#This Row],[Ч1]:[Ч6]]=TRANSPOSE(таблИгра[[#This Row],[Г1]:[Г6]]))) -> 1 | R80: =_xlfn.SWITCH(таблИгра[[#This Row],[Совпадения]],0,0,1,0,2,50,3,150,4,1500,5,100000,таблИгра[[#This Row],[Суперприз]])-50 -> -50 | S80: =SUM($R$4:таблИгра[[#This Row],[Результат]]) -> -3150
A81: 2022-02-08T11:00:00 | B81: 6388 | C81: 10000000 | D81: 12-34-05-29-01-44 | E81: 12 | F81: 34 | G81: 5 | H81: 29 | I81: 1 | J81: 44 | K81: 12 | L81: 18 | M81: 26 | N81: 10 | O81: 21 | P81: 6 | Q81: =SUMPRODUCT(--(таблИгра[[#This Row],[Ч1]:[Ч6]]=TRANSPOSE(таблИгра[[#This Row],[Г1]:[Г6]]))) -> 1 | R81: =_xlfn.SWITCH(таблИгра[[#This Row],[Совпадения]],0,0,1,0,2,50,3,150,4,1500,5,100000,таблИгра[[#This Row],[Суперприз]])-50 -> -50 | S81: =SUM($R$4:таблИгра[[#This Row],[Результат]]) -> -3200
A82: 2022-02-08T23:00:00 | B82: 6389 | C82: 10000000 | D82: 27-03-28-30-10-34 | E82: 27 | F82: 3 | G82: 28 | H82: 30 | I82: 10 | J82: 34 | K82: 12 | L82: 18 | M82: 26 | N82: 10 | O82: 21 | P82: 6 | Q82: =SUMPRODUCT(--(таблИгра[[#This Row],[Ч1]:[Ч6]]=TRANSPOSE(таблИгра[[#This Row],[Г1]:[Г6]]))) -> 1 | R82: =_xlfn.SWITCH(таблИгра[[#This Row],[Совпадения]],0,0,1,0,2,50,3,150,4,1500,5,100000,таблИгра[[#This Row],[Суперприз]])-50 -> -50 | S82: =SUM($R$4:таблИгра[[#This Row],[Результат]]) -> -3250
A83: 2022-02-09T11:00:00 | B83: 6390 | C83: 10000000 | D83: 17-26-12-20-41-01 | E83: 17 | F83: 26 | G83: 12 | H83: 20 | I83: 41 | J83: 1 | K83: 12 | L83: 18 | M83: 26 | N83: 10 | O83: 21 | P83: 6 | Q83: =SUMPRODUCT(--(таблИгра[[#This Row],[Ч1]:[Ч6]]=TRANSPOSE(таблИгра[[#This Row],[Г1]:[Г6]]))) -> 2 | R83: =_xlfn.SWITCH(таблИгра[[#This Row],[Совпадения]],0,0,1,0,2,50,3,150,4,1500,5,100000,таблИгра[[#This Row],[Суперприз]])-50 -> 0 | S83: =SUM($R$4:таблИгра[[#This Row],[Результат]]) -> -3250
A84: 2022-02-09T23:00:00 | B84: 6391 | C84: 10000000 | D84: 09-41-15-18-05-06 | E84: 9 | F84: 41 | G84: 15 | H84: 18 | I84: 5 | J84: 6 | K84: 12 | L84: 18 | M84: 26 | N84: 10 | O84: 21 | P84: 6 | Q84: =SUMPRODUCT(--(таблИгра[[#This Row],[Ч1]:[Ч6]]=TRANSPOSE(таблИгра[[#This Row],[Г1]:[Г6]]))) -> 2 | R84: =_xlfn.SWITCH(таблИгра[[#This Row],[Совпадения]],0,0,1,0,2,50,3,150,4,1500,5,100000,таблИгра[[#This Row],[Суперприз]])-50 -> 0 | S84: =SUM($R$4:таблИгра[[#This Row],[Результат]]) -> -3250
A85: 2022-02-10T11:00:00 | B85: 6392 | C85: 10000000 | D85: 30-23-08-29-07-01 | E85: 30 | F85: 23 | G85: 8 | H85: 29 | I85: 7 | J85: 1 | K85: 12 | L85: 18 | M85: 26 | N85: 10 | O85: 21 | P85: 6 | Q85: =SUMPRODUCT(--(таблИгра[[#This Row],[Ч1]:[Ч6]]=TRANSPOSE(таблИгра[[#This Row],[Г1]:[Г6]]))) -> 0 | R85: =_xlfn.SWITCH(таблИгра[[#This Row],[Совпадения]],0,0,1,0,2,50,3,150,4,1500,5,100000,таблИгра[[#This Row],[Суперприз]])-50 -> -50 | S85: =SUM($R$4:таблИгра[[#This Row],[Результат]]) -> -3300
A86: 2022-02-10T23:00:00 | B86: 6393 | C86: 10000000 | D86: 44-06-45-21-03-42 | E86: 44 | F86: 6 | G86: 45 | H86: 21 | I86: 3 | J86: 42 | K86: 12 | L86: 18 | M86: 26 | N86: 10 | O86: 21 | P86: 6 | Q86: =SUMPRODUCT(--(таблИгра[[#This Row],[Ч1]:[Ч6]]=TRANSPOSE(таблИгра[[#This Row],[Г1]:[Г6]]))) -> 2 | R86: =_xlfn.SWITCH(таблИгра[[#This Row],[Совпадения]],0,0,1,0,2,50,3,150,4,1500,5,100000,таблИгра[[#This Row],[Суперприз]])-50 -> 0 | S86: =SUM($R$4:таблИгра[[#This Row],[Результат]]) -> -3300

Sheet Тиражи 2022
A1: Дата тиража | B1: Номер тиража | C1: Суперприз | D1: Выпавшие числа | E1: Ч1 | F1: Ч2 | G1: Ч3 | H1: Ч4 | I1: Ч5 | J1: Ч6
A2: 2022-01-01T11:00:00 | B2: 6312 | C2: 10000000 | D2: 37-23-44-16-21-05 | E2: 37 | F2: 23 | G2: 44 | H2: 16 | I2: 21 | J2: 5
A3: 2022-01-01T23:00:00 | B3: 6313 | C3: 10000000 | D3: 24-30-31-15-16-22 | E3: 24 | F3: 30 | G3: 31 | H3: 15 | I3: 16 | J3: 22
A4: 2022-01-02T11:00:00 | B4: 6314 | C4: 10000000 | D4: 37-27-26-40-17-30 | E4: 37 | F4: 27 | G4: 26 | H4: 40 | I4: 17 | J4: 30
A5: 2022-01-02T23:00:00 | B5: 6315 | C5: 10000000 | D5: 13-26-22-23-40-18 | E5: 13 | F5: 26 | G5: 22 | H5: 23 | I5: 40 | J5: 18
A6: 2022-01-03T11:00:00 | B6: 6316 | C6: 10000000 | D6: 29-09-27-44-06-22 | E6: 29 | F6: 9 | G6: 27 | H6: 44 | I6: 6 | J6: 22
A7: 2022-01-03T23:00:00 | B7: 6317 | C7: 10000000 | D7: 42-43-29-10-41-01 | E7: 42 | F7: 43 | G7: 29 | H7: 10 | I7: 41 | J7: 1
A8: 2022-01-04T11:00:00 | B8: 6318 | C8: 10000000 | D8: 37-02-23-44-05-22 | E8: 37 | F8: 2 | G8: 23 | H8: 44 | I8: 5 | J8: 22
A9: 2022-01-04T23:00:00 | B9: 6319 | C9: 10000000 | D9: 13-34-18-31-22-32 | E9: 13 | F9: 34 | G9: 18 | H9: 31 | I9: 22 | J9: 32
A10: 2022-01-05T11:00:00 | B10: 6320 | C10: 10000000 | D10: 22-42-05-29-32-18 | E10: 22 | F10: 42 | G10: 5 | H10: 29 | I10: 32 | J10: 18
A11: 2022-01-05T23:00:00 | B11: 6321 | C11: 10000000 | D11: 30-02-25-23-39-01 | E11: 30 | F11: 2 | G11: 25 | H11: 23 | I11: 39 | J11: 1
A12: 2022-01-06T11:00:00 | B12: 6322 | C12: 10000000 | D12: 20-34-14-21-11-08 | E12: 20 | F12: 34 | G12: 14 | H12: 21 | I12: 11 | J12: 8
A13: 2022-01-06T23:00:00 | B13: 6323 | C13: 10000000 | D13: 41-25-18-35-26-45 | E13: 41 | F13: 25 | G13: 18 | H13: 35 | I13: 26 | J13: 45
A14: 2022-01-07T11:00:00 | B14: 6324 | C14: 10000000 | D14: 37-36-42-12-35-13 | E14: 37 | F14: 36 | G14: 42 | H14: 12 | I14: 35 | J14: 13
A15: 2022-01-07T23:00:00 | B15: 6325 | C15: 10000000 | D15: 11-05-23-09-21-35 | E15: 11 | F15: 5 | G15: 23 | H15: 9 | I15: 21 | J15: 35
A16: 2022-01-08T11:00:00 | B16: 6326 | C16: 10000000 | D16: 03-01-08-37-25-41 | E16: 3 | F16: 1 | G16: 8 | H16: 37 | I16: 25 | J16: 41
A17: 2022-01-08T23:00:00 | B17: 6327 | C17: 10000000 | D17: 21-26-32-36-35-25 | E17: 21 | F17: 26 | G17: 32 | H17: 36 | I17: 35 | J17: 25
A18: 2022-01-09T11:00:00 | B18: 6328 | C18: 10000000 | D18: 19-14-35-07-13-03 | E18: 19 | F18: 14 | G18: 35 | H18: 7 | I18: 13 | J18: 3
A19: 2022-01-09T23:00:00 | B19: 6329 | C19: 10000000 | D19: 28-10-27-41-24-18 | E19: 28 | F19: 10 | G19: 27 | H19: 41 | I19: 24 | J19: 18
A20: 2022-01-10T11:00:00 | B20: 6330 | C20: 10000000 | D20: 03-23-06-15-12-20 | E20: 3 | F20: 23 | G20: 6 | H20: 15 | I20: 12 | J20: 20
A21: 2022-01-10T23:00:00 | B21: 6331 | C21: 10000000 | D21: 38-10-21-07-44-12 | E21: 38 | F21: 10 | G21: 21 | H21: 7 | I21: 44 | J21: 12
A22: 2022-01-11T11:00:00 | B22: 6332 | C22: 10000000 | D22: 19-05-44-09-29-15 | E22: 19 | F22: 5 | G22: 44 | H22: 9 | I22: 29 | J22: 15
A23: 2022-01-11T23:00:00 | B23: 6333 | C23: 10156050 | D23: 27-39-04-32-17-12 | E23: 27 | F23: 39 | G23: 4 | H23: 32 | I23: 17 | J23: 12
A24: 2022-01-12T11:00:00 | B24: 6334 | C24: 10516525 | D24: 13-05-28-30-25-03 | E24: 13 | F24: 5 | G24: 28 | H24: 30 | I24: 25 | J24: 3
A25: 2022-01-12T23:00:00 | B25: 6335 | C25: 10618900 | D25: 09-25-33-04-03-18 | E25: 9 | F25: 25 | G25: 33 | H25: 4 | I25: 3 | J25: 18
A26: 2022-01-13T11:00:00 | B26: 6336 | C26: 10866975 | D26: 04-18-33-42-44-29 | E26: 4 | F26: 18 | G26: 33 | H26: 42 | I26: 44 | J26: 29
A27: 2022-01-13T23:00:00 | B27: 6337 | C27: 11141200 | D27: 18-24-07-09-25-34 | E27: 18 | F27: 24 | G27: 7 | H27: 9 | I27: 25 | J27: 34
A28: 2022-01-14T11:00:00 | B28: 6338 | C28: 11468700 | D28: 13-30-16-25-12-28 | E28: 13 | F28: 30 | G28: 16 | H28: 25 | I28: 12 | J28: 28
A29: 2022-01-14T23:00:00 | B29: 6339 | C29: 11688375 | D29: 05-17-02-32-08-24 | E29: 5 | F29: 17 | G29: 2 | H29: 32 | I29: 8 | J29: 24
A30: 2022-01-15T11:00:00 | B30: 6340 | C30: 11925700 | D30: 38-35-20-42-09-14 | E30: 38 | F30: 35 | G30: 20 | H30: 42 | I30: 9 | J30: 14
A31: 2022-01-15T23:00:00 | B31: 6341 | C31: 12118050 | D31: 07-27-29-09-45-26 | E31: 7 | F31: 27 | G31: 29 | H31: 9 | I31: 45 | J31: 26
A32: 2022-01-16T11:00:00 | B32: 6342 | C32: 12300850 | D32: 31-32-03-44-08-28 | E32: 31 | F32: 32 | G32: 3 | H32: 44 | I32: 8 | J32: 28
A33: 2022-01-16T23:00:00 | B33: 6343 | C33: 12556025 | D33: 07-41-44-35-09-40 | E33: 7 | F33: 41 | G33: 44 | H33: 35 | I33: 9 | J33: 40
A34: 2022-01-17T11:00:00 | B34: 6344 | C34: 12909625 | D34: 06-04-41-14-09-23 | E34: 6 | F34: 4 | G34: 41 | H34: 14 | I34: 9 | J34: 23
A35: 2022-01-17T23:00:00 | B35: 6345 | C35: 13060775 | D35: 26-30-40-36-22-04 | E35: 26 | F35: 30 | G35: 40 | H35: 36 | I35: 22 | J35: 4
A36: 2022-01-18T11:00:00 | B36: 6346 | C36: 13464300 | D36: 16-30-09-23-07-34 | E36: 16 | F36: 30 | G36: 9 | H36: 23 | I36: 7 | J36: 34
A37: 2022-01-18T23:00:00 | B37: 6347 | C37: 13583200 | D37: 21-31-06-09-23-40 | E37: 21 | F37: 31 | G37: 6 | H37: 9 | I37: 23 | J37: 40
A38: 2022-01-19T11:00:00 | B38: 6348 | C38: 13963400 | D38: 29-05-09-20-01-32 | E38: 29 | F38: 5 | G38: 9 | H38: 20 | I38: 1 | J38: 32
A39: 2022-01-19T23:00:00 | B39: 6349 | C39: 14131625 | D39: 40-18-38-41-22-20 | E39: 40 | F39: 18 | G39: 38 | H39: 41 | I39: 22 | J39: 20
A40: 2022-01-20T11:00:00 | B40: 6350 | C40: 14574100 | D40: 08-24-43-14-37-28 | E40: 8 | F40: 24 | G40: 43 | H40: 14 | I40: 37 | J40: 28
A41: 2022-01-20T23:00:00 | B41: 6351 | C41: 14531175 | D41: 08-30-39-35-07-26 | E41: 8 | F41: 30 | G41: 39 | H41: 35 | I41: 7 | J41: 26
A42: 2022-01-21T11:00:00 | B42: 6352 | C42: 14983050 | D42: 22-34-37-01-25-41 | E42: 22 | F42: 34 | G42: 37 | H42: 1 | I42: 25 | J42: 41
A43: 2022-01-21T23:00:00 | B43: 6353 | C43: 15295475 | D43: 25-43-44-20-16-04 | E43: 25 | F43: 43 | G43: 44 | H43: 20 | I43: 16 | J43: 4
A44: 2022-01-22T11:00:00 | B44: 6354 | C44: 15894200 | D44: 11-05-13-37-01-20 | E44: 11 | F44: 5 | G44: 13 | H44: 37 | I44: 1 | J44: 20
A45: 2022-01-22T23:00:00 | B45: 6355 | C45: 15984900 | D45: 44-24-17-03-45-26 | E45: 44 | F45: 24 | G45: 17 | H45: 3 | I45: 45 | J45: 26
A46: 2022-01-23T11:00:00 | B46: 6356 | C46: 16286250 | D46: 44-38-36-11-20-07 | E46: 44 | F46: 38 | G46: 36 | H46: 11 | I46: 20 | J46: 7
A47: 2022-01-23T23:00:00 | B47: 6357 | C47: 16457550 | D47: 31-34-26-33-29-36 | E47: 31 | F47: 34 | G47: 26 | H47: 33 | I47: 29 | J47: 36
A48: 2022-01-24T11:00:00 | B48: 6358 | C48: 16963425 | D48: 05-34-39-38-18-35 | E48: 5 | F48: 34 | G48: 39 | H48: 38 | I48: 18 | J48: 35
A49: 2022-01-24T23:00:00 | B49: 6359 | C49: 17270950 | D49: 17-05-29-16-26-07 | E49: 17 | F49: 5 | G49: 29 | H49: 16 | I49: 26 | J49: 7
A50: 2022-01-25T11:00:00 | B50: 6360 | C50: 17714850 | D50: 35-03-01-13-04-44 | E50: 35 | F50: 3 | G50: 1 | H50: 13 | I50: 4 | J50: 44
A51: 2022-01-25T23:00:00 | B51: 6361 | C51: 18019375 | D51: 12-40-02-10-16-44 | E51: 12 | F51: 40 | G51: 2 | H51: 10 | I51: 16 | J51: 44
A52: 2022-01-26T11:00:00 | B52: 6362 | C52: 18171350 | D52: 19-16-31-17-26-04 | E52: 19 | F52: 16 | G52: 31 | H52: 17 | I52: 26 | J52: 4
A53: 2022-01-26T23:00:00 | B53: 6363 | C53: 18340500 | D53: 11-23-36-21-28-22 | E53: 11 | F53: 23 | G53: 36 | H53: 21 | I53: 28 | J53: 22
A54: 2022-01-27T11:00:00 | B54: 6364 | C54: 18474525 | D54: 21-05-36-34-02-33 | E54: 21 | F54: 5 | G54: 36 | H54: 34 | I54: 2 | J54: 33
A55: 2022-01-27T23:00:00 | B55: 6365 | C55: 18801775 | D55: 21-32-01-28-17-40 | E55: 21 | F55: 32 | G55: 1 | H55: 28 | I55: 17 | J55: 40
A56: 2022-01-28T11:00:00 | B56: 6366 | C56: 19140675 | D56: 45-38-30-02-37-09 | E56: 45 | F56: 38 | G56: 30 | H56: 2 | I56: 37 | J56: 9
A57: 2022-01-28T23:00:00 | B57: 6367 | C57: 19512125 | D57: 39-31-29-19-32-33 | E57: 39 | F57: 31 | G57: 29 | H57: 19 | I57: 32 | J57: 33
A58: 2022-01-29T11:00:00 | B58: 6368 | C58: 20027950 | D58: 28-09-19-36-07-41 | E58: 28 | F58: 9 | G58: 19 | H58: 36 | I58: 7 | J58: 41
A59: 2022-01-29T23:00:00 | B59: 6369 | C59: 20184025 | D59: 12-36-42-33-08-07 | E59: 12 | F59: 36 | G59: 42 | H59: 33 | I59: 8 | J59: 7
A60: 2022-01-30T11:00:00 | B60: 6370 | C60: 20135175 | D60: 15-16-10-43-39-02 | E60: 15 | F60: 16 | G60: 10 | H60: 43 | I60: 39 | J60: 2
A61: 2022-01-30T23:00:00 | B61: 6371 | C61: 20464150 | D61: 09-16-26-38-37-40 | E61: 9 | F61: 16 | G61: 26 | H61: 38 | I61: 37 | J61: 40
A62: 2022-01-31T11:00:00 | B62: 6372 | C62: 20550350 | D62: 32-15-39-26-34-45 | E62: 32 | F62: 15 | G62: 39 | H62: 26 | I62: 34 | J62: 45
A63: 2022-01-31T23:00:00 | B63: 6373 | C63: 20820050 | D63: 10-05-37-35-18-11 | E63: 10 | F63: 5 | G63: 37 | H63: 35 | I63: 18 | J63: 11
A64: 2022-02-01T11:00:00 | B64: 6374 | C64: 18980325 | D64: 07-38-33-13-28-40 | E64: 7 | F64: 38 | G64: 33 | H64: 13 | I64: 28 | J64: 40
A65: 2022-02-01T23:00:00 | B65: 6375 | C65: 10000000 | D65: 37-04-35-05-41-21 | E65: 37 | F65: 4 | G65: 35 | H65: 5 | I65: 41 | J65: 21
A66: 2022-02-02T11:00:00 | B66: 6376 | C66: 10000000 | D66: 36-15-14-21-29-16 | E66: 36 | F66: 15 | G66: 14 | H66: 21 | I66: 29 | J66: 16
A67: 2022-02-02T23:00:00 | B67: 6377 | C67: 10000000 | D67: 13-26-19-31-08-11 | E67: 13 | F67: 26 | G67: 19 | H67: 31 | I67: 8 | J67: 11
A68: 2022-02-03T11:00:00 | B68: 6378 | C68: 10000000 | D68: 07-08-06-24-13-18 | E68: 7 | F68: 8 | G68: 6 | H68: 24 | I68: 13 | J68: 18
A69: 2022-02-03T23:00:00 | B69: 6379 | C69: 10000000 | D69: 27-08-14-25-39-40 | E69: 27 | F69: 8 | G69: 14 | H69: 25 | I69: 39 | J69: 40
A70: 2022-02-04T11:00:00 | B70: 6380 | C70: 10000000 | D70: 35-41-02-32-29-13 | E70: 35 | F70: 41 | G70: 2 | H70: 32 | I70: 29 | J70: 13
A71: 2022-02-04T23:00:00 | B71: 6381 | C71: 10000000 | D71: 36-39-29-40-31-44 | E71: 36 | F71: 39 | G71: 29 | H71: 40 | I71: 31 | J71: 44
A72: 2022-02-05T11:00:00 | B72: 6382 | C72: 10000000 | D72: 24-26-35-41-06-39 | E72: 24 | F72: 26 | G72: 35 | H72: 41 | I72: 6 | J72: 39
A73: 2022-02-05T23:00:00 | B73: 6383 | C73: 10000000 | D73: 09-31-18-01-13-30 | E73: 9 | F73: 31 | G73: 18 | H73: 1 | I73: 13 | J73: 30
A74: 2022-02-06T11:00:00 | B74: 6384 | C74: 10000000 | D74: 13-14-45-04-29-15 | E74: 13 | F74: 14 | G74: 45 | H74: 4 | I74: 29 | J74: 15
A75: 2022-02-06T23:00:00 | B75: 6385 | C75: 10000000 | D75: 29-38-15-04-28-39 | E75: 29 | F75: 38 | G75: 15 | H75: 4 | I75: 28 | J75: 39
A76: 2022-02-07T11:00:00 | B76: 6386 | C76: 10000000 | D76: 01-24-17-08-36-13 | E76: 1 | F76: 24 | G76: 17 | H76: 8 | I76: 36 | J76: 13
A77: 2022-02-07T23:00:00 | B77: 6387 | C77: 10000000 | D77: 11-05-08-26-17-07 | E77: 11 | F77: 5 | G77: 8 | H77: 26 | I77: 17 | J77: 7
A78: 2022-02-08T11:00:00 | B78: 6388 | C78: 10000000 | D78: 12-34-05-29-01-44 | E78: 12 | F78: 34 | G78: 5 | H78: 29 | I78: 1 | J78: 44
A79: 2022-02-08T23:00:00 | B79: 6389 | C79: 10000000 | D79: 27-03-28-30-10-34 | E79: 27 | F79: 3 | G79: 28 | H79: 30 | I79: 10 | J79: 34
A80: 2022-02-09T11:00:00 | B80: 6390 | C80: 10000000 | D80: 17-26-12-20-41-01 | E80: 17 | F80: 26 | G80: 12 | H80: 20 | I80: 41 | J80: 1
A81: 2022-02-09T23:00:00 | B81: 6391 | C81: 10000000 | D81: 09-41-15-18-05-06 | E81: 9 | F81: 41 | G81: 15 | H81: 18 | I81: 5 | J81: 6
A82: 2022-02-10T11:00:00 | B82: 6392 | C82: 10000000 | D82: 30-23-08-29-07-01 | E82: 30 | F82: 23 | G82: 8 | H82: 29 | I82: 7 | J82: 1
A83: 2022-02-10T23:00:00 | B83: 6393 | C83: 10000000 | D83: 44-06-45-21-03-42 | E83: 44 | F83: 6 | G83: 45 | H83: 21 | I83: 3 | J83: 42

Sheet Сравнение
A1: № | B1: Генератор | C1: Любимчики | D1: Аутсайдеры | E1: Холодные
A2: 1 | B2: 0 | C2: -50 | D2: -50 | E2: -50
A3: 2 | B3: 0 | C3: -100 | D3: -100 | E3: -100
A4: 3 | B4: -50 | C4: -100 | D4: -150 | E4: -150
A5: 4 | B5: 50 | C5: -150 | D5: -150 | E5: -200
A6: 5 | B6: 0 | C6: -200 | D6: -200 | E6: -200
A7: 6 | B7: 0 | C7: -250 | D7: -250 | E7: -250
A8: 7 | B8: -50 | C8: -300 | D8: -300 | E8: -300
A9: 8 | B9: -100 | C9: -350 | D9: -350 | E9: -350
A10: 9 | B10: -150 | C10: -400 | D10: -400 | E10: -350
A11: 10 | B11: -200 | C11: -450 | D11: -450 | E11: -400
A12: 11 | B12: -250 | C12: -500 | D12: -500 | E12: -450
A13: 12 | B13: -150 | C13: -550 | D13: -500 | E13: -500
A14: 13 | B14: -200 | C14: -600 | D14: -550 | E14: -550
A15: 14 | B15: -200 | C15: -650 | D15: -600 | E15: -450
A16: 15 | B16: -250 | C16: -700 | D16: -650 | E16: -500
A17: 16 | B17: -300 | C17: -750 | D17: -650 | E17: -550
A18: 17 | B18: -350 | C18: -800 | D18: -700 | E18: -600
A19: 18 | B19: -400 | C19: -850 | D19: -700 | E19: -650
A20: 19 | B20: -450 | C20: -900 | D20: -700 | E20: -700
A21: 20 | B21: -500 | C21: -950 | D21: -600 | E21: -750
A22: 21 | B22: -550 | C22: -1000 | D22: -650 | E22: -750
A23: 22 | B23: -600 | C23: -900 | D23: -700 | E23: -800
A24: 23 | B24: -650 | C24: -950 | D24: -750 | E24: -850
A25: 24 | B25: -700 | C25: -1000 | D25: -800 | E25: -900
A26: 25 | B26: -750 | C26: -1050 | D26: -850 | E26: -950
A27: 26 | B27: -800 | C27: -1100 | D27: -900 | E27: -1000
A28: 27 | B28: -850 | C28: -1150 | D28: -950 | E28: -1050
A29: 28 | B29: -900 | C29: -1150 | D29: -1000 | E29: -1100
A30: 29 | B30: -900 | C30: -1200 | D30: -1050 | E30: -1150
A31: 30 | B31: -950 | C31: -1250 | D31: -1100 | E31: -1200
A32: 31 | B32: -1000 | C32: -1300 | D32: -1150 | E32: -1250
A33: 32 | B33: -1050 | C33: -1350 | D33: -1200 | E33: -1300
A34: 33 | B34: -1050 | C34: -1400 | D34: -1250 | E34: -1350
A35: 34 | B35: -1050 | C35: -1450 | D35: -1300 | E35: -1400
A36: 35 | B36: -1100 | C36: -1500 | D36: -1350 | E36: -1450
A37: 36 | B37: -1150 | C37: -1550 | D37: -1350 | E37: -1500
A38: 37 | B38: -1050 | C38: -1600 | D38: -1400 | E38: -1500
A39: 38 | B39: -1100 | C39: -1650 | D39: -1450 | E39: -1550
A40: 39 | B40: -1100 | C40: -1650 | D40: -1500 | E40: -1600
A41: 40 | B41: -1150 | C41: -1700 | D41: -1550 | E41: -1600
A42: 41 | B42: -1200 | C42: -1750 | D42: -1600 | E42: -1650
A43: 42 | B43: -1250 | C43: -1800 | D43: -1650 | E43: -1700
A44: 43 | B44: -1300 | C44: -1850 | D44: -1700 | E44: -1700
A45: 44 | B45: -1350 | C45: -1900 | D45: -1750 | E45: -1750
A46: 45 | B46: -1400 | C46: -1950 | D46: -1800 | E46: -1800
A47: 46 | B47: -1450 | C47: -2000 | D47: -1850 | E47: -1850
A48: 47 | B48: -1500 | C48: -2050 | D48: -1900 | E48: -1750
A49: 48 | B49: -1550 | C49: -2100 | D49: -1950 | E49: -1750
A50: 49 | B50: -1550 | C50: -2150 | D50: -2000 | E50: -1800
A51: 50 | B51: -1600 | C51: -2200 | D51: -2000 | E51: -1850
A52: 51 | B52: -1600 | C52: -2250 | D52: -2050 | E52: -1900
A53: 52 | B53: -1650 | C53: -2300 | D53: -2100 | E53: -1950
A54: 53 | B54: -1650 | C54: -2350 | D54: -2150 | E54: -2000
A55: 54 | B55: -1700 | C55: -2350 | D55: -2200 | E55: -2050
A56: 55 | B56: -1750 | C56: -2400 | D56: -2250 | E56: -2100
A57: 56 | B57: -1800 | C57: -2400 | D57: -2300 | E57: -2100
A58: 57 | B58: -1850 | C58: -2450 | D58: -2350 | E58: -2150
A59: 58 | B59: -1900 | C59: -2500 | D59: -2400 | E59: -2200
A60: 59 | B60: -1950 | C60: -2550 | D60: -2450 | E60: -2250
A61: 60 | B61: -2000 | C61: -2600 | D61: -2500 | E61: -2300
A62: 61 | B62: -2050 | C62: -2650 | D62: -2550 | E62: -2350
A63: 62 | B63: -2100 | C63: -2700 | D63: -2550 | E63: -2250
A64: 63 | B64: -2150 | C64: -2750 | D64: -2600 | E64: -2300
A65: 64 | B65: -2200 | C65: -2800 | D65: -2650 | E65: -2300
A66: 65 | B66: -2250 | C66: -2850 | D66: -2700 | E66: -2350
A67: 66 | B67: -2300 | C67: -2900 | D67: -2750 | E67: -2400
A68: 67 | B68: -2350 | C68: -2950 | D68: -2750 | E68: -2450
A69: 68 | B69: -2400 | C69: -2950 | D69: -2800 | E69: -2500
A70: 69 | B70: -2300 | C70: -3000 | D70: -2850 | E70: -2500
A71: 70 | B71: -2350 | C71: -3050 | D71: -2900 | E71: -2500
A72: 71 | B72: -2400 | C72: -3100 | D72: -2900 | E72: -2400
A73: 72 | B73: -2450 | C73: -3150 | D73: -2950 | E73: -2450
A74: 73 | B74: -2500 | C74: -3200 | D74: -3000 | E74: -2500
A75: 74 | B75: -2550 | C75: -3250 | D75: -3050 | E75: -2500
A76: 75 | B76: -2600 | C76: -3300 | D76: -3100 | E76: -2550
A77: 76 | B77: -2650 | C77: -3350 | D77: -3150 | E77: -2550
A78: 77 | B78: -2700 | C78: -3400 | D78: -3200 | E78: -2550
A79: 78 | B79: -2750 | C79: -3450 | D79: -3250 | E79: -2600
A80: 79 | B80: -2800 | C80: -3500 | D80: -3250 | E80: -2650
A81: 80 | B81: -2850 | C81: -3550 | D81: -3250 | E81: -2650
A82: 81 | B82: -2750 | C82: -3600 | D82: -3300 | E82: -2700
A83: 82 | B83: -2800 | C83: -3650 | D83: -3300 | E83: -2750
